Workbook

Sheet BExRepositorySheet (hidden)
A1: 7

Sheet Ingresos
A3: EMPRESA DE ACUEDUCTO ALCANTARILLADO DE BOGOTA
A4: EJECUCION PRESUPUESTAL DE INGRESOS
A5: A 31 DE MARZO DE 2019
C6: 1 | D6: 2 | E6: 3 | F6: 4 | G6: 5 | H6: 6 | I6: 7=(6/4) | J6: 8=(4-6)
A7: CODIGO SECRETARIA DE HACIENDA | B7: RUBRO | C7: PRESUPUESTO INICIAL | D7: MODIFICACIONES MES | E7: MODIFICACIONES ACUMULADAS | F7: PRESUPUESTO DEFINITIVO | G7: RECAUDOS MES | H7: RECAUDOS ACUMULADOS | I7: % EJEC PPTAL | J7: SALDO POR RECAUDAR
A8: TOTAL INGRESOS + DISPONIBILIDAD INICIAL | C8: 5419077626000 | F8: 5419077626000 | G8: 150189021881 | H8: 1318988585284 | I8: 0.2433972488 | J8: 4100089040716
A9: 310000000000000 | B9: DISPONIBILIDAD INICIAL | C9: 813719123000 | F9: 813719123000 | H9: 813719123000 | I9: 1
A10: 310000000000000 | B10: DISPONIBILIDAD INICIAL | C10: 813719123000 | F10: 813719123000 | H10: 813719123000 | I10: 1
A11: 320000000000000 | B11: INGRESOS | C11: 4605358503000 | F11: 4605358503000 | G11: 150189021881 | H11: 505269462284 | I11: 0.1097133832 | J11: 4100089040716
A12: 321000000000000 | B12: INGRESOS CORRIENTES | C12: 2165376401000 | F12: 2165376401000 | G12: 138660156896 | H12: 444297290675 | I12: 0.2051824757 | J12: 1721079110325
A13: 321010000000000 | B13: INGRESOS DE EXPLOTACION | C13: 1758896574000 | F13: 1758896574000 | G13: 137989442601 | H13: 437742982320 | I13: 0.2488736341 | J13: 1321153591680
A14: 321010200000000 | B14: VENTA DE SERVICIOS | C14: 1733463321000 | F14: 1733463321000 | G14: 134422964670 | H14: 430916185624 | I14: 0.2485868495 | J14: 1302547135376
A15: 321010201000000 | B15: SERVICIO ACUEDUCTO | C15: 944794737000 | F15: 944794737000 | G15: 69391163045 | H15: 221918173898 | I15: 0.2348850657 | J15: 722876563102
A16: 321010202000000 | B16: SERVICIO ALCANTARILLADO | C16: 788668584000 | F16: 788668584000 | G16: 65031801625 | H16: 208998011726 | I16: 0.2650010612 | J16: 579670572274
A17: 321019900000000 | B17: OTROS INGRESOS DE EXPLOTACION | C17: 25433253000 | F17: 25433253000 | G17: 3566477931 | H17: 6826796696 | I17: 0.268420115 | J17: 18606456304
A18: 321019902000000 | B18: INTERESES A USUARIOS | C18: 2900648000 | F18: 2900648000 | G18: 360765336 | H18: 1080778539 | I18: 0.3725989982 | J18: 1819869461
A19: 321019903000000 | B19: PUBLICACIONES | C19: 5700000 | F19: 5700000 | G19: 2858206 | H19: 9761447 | I19: 1.712534561 | J19: -4061447
A20: 321019904000000 | B20: SERVICIOS | C20: 639109000 | F20: 639109000 | G20: 35780166 | H20: 39293008 | I20: 0.06148091797 | J20: 599815992
A21: 321019905000000 | B21: CUOTAS PARTES PENSIONALES | G21: 118256212 | H21: 445028375 | J21: -445028375
A22: 321019906000000 | B22: EXTRAORDINARIOS RECUPERACIÓN | G22: 421135547 | H22: 1537944448 | J22: -1537944448
A23: 321019907000000 | B23: INGRESOS CENTRAL HIDROELÉCTRICA | C23: 11085124000 | F23: 11085124000 | H23: 1009511807 | I23: 0.09106905859 | J23: 10075612193
A24: 321019908000000 | B24: SANCIONES Y MULTAS | G24: 34129305 | H24: 110925913 | J24: -110925913
A25: 321019909000000 | B25: COMISIONES | C25: 10802672000 | F25: 10802672000 | G25: 2593553159 | H25: 2593553159 | I25: 0.2400844124 | J25: 8209118841
A26: 321020000000000 | B26: OTROS INGRESOS CORRIENTES | C26: 406479827000 | F26: 406479827000 | G26: 670714295 | H26: 6554308355 | I26: 0.01612455999 | J26: 399925518645
A27: 321020100000000 | B27: RENTAS CONTRACTUALES | C27: 406479827000 | F27: 406479827000 | G27: 670714295 | H27: 6554308355 | I27: 0.01612455999 | J27: 399925518645
A28: 321020199000000 | B28: OTRAS RENTAS CONTRACTUALES | C28: 406479827000 | F28: 406479827000 | G28: 670714295 | H28: 6554308355 | I28: 0.01612455999 | J28: 399925518645
A29: 322000000000000 | B29: TRANSFERENCIAS | C29: 239567781000 | F29: 239567781000 | H29: 32554640172 | I29: 0.1358890584 | J29: 207013140828
A30: 322030000000000 | B30: MUNICIPIOS | C30: 1601000000 | F30: 1601000000 | J30: 1601000000
A31: 322030000000000 | B31: MUNICIPIOS | C31: 1601000000 | F31: 1601000000 | J31: 1601000000
A32: 322040000000000 | B32: ADMINISTRACION CENTRAL | C32: 237966781000 | F32: 237966781000 | H32: 32554640172 | I32: 0.1368032968 | J32: 205412140828
A33: 322040300000000 | B33: SECRETARIA DISTRITAL DE HACIENDA | C33: 81747001000 | F33: 81747001000 | J33: 81747001000
A34: 322040500000000 | B34: SDH - MÍNIMO VITAL | C34: 71465000000 | F34: 71465000000 | J34: 71465000000
A35: 322040600000000 | B35: SDH - LEY 99 DE 1993 | C35: 84754780000 | F35: 84754780000 | J35: 84754780000
A36: 322040800000000 | B36: LEY 99 DE 1993, SUBSIDIOS Y MÍNIMO VITAL - VIGENCIA ANTERIOR | H36: 32554640172 | J36: -32554640172
A37: 323000000000000 | B37: RECURSOS DE CAPITAL | C37: 2200414321000 | F37: 2200414321000 | G37: 11528864985 | H37: 28417531437 | I37: 0.01291462756 | J37: 2171996789563
A38: 323010000000000 | B38: RECURSOS DEL CREDITO | C38: 1976633221000 | F38: 1976633221000 | J38: 1976633221000
A39: 323010100000000 | B39: CREDITO INTERNO | C39: 1976633221000 | F39: 1976633221000 | J39: 1976633221000
A40: 323010101000000 | B40: VIGENCIA | C40: 1976633221000 | F40: 1976633221000 | J40: 1976633221000
A41: 323020000000000 | B41: RENDIMIENTOS POR OPERACIONES FINANCIERAS | C41: 73532847000 | F41: 73532847000 | G41: 10859509899 | H41: 26409813712 | I41: 0.359156687 | J41: 47123033288
A42: 323020000000000 | B42: RENDIMIENTOS POR OPERACIONES FINANCIERAS | C42: 73532847000 | F42: 73532847000 | G42: 10859509899 | H42: 26409813712 | I42: 0.359156687 | J42: 47123033288
A43: 323090000000000 | B43: OTROS RECURSOS DE CAPITAL | C43: 150248253000 | F43: 150248253000 | G43: 669355086 | H43: 2007717725 | I43: 0.01336266935 | J43: 148240535275
A44: 323090100000000 | B44: RECUPERACION PRESTAMOS - BIENESTAR | C44: 15650001000 | F44: 15650001000 | G44: 477170086 | H44: 1815532725 | I44: 0.1160084734 | J44: 13834468275
A45: 323090200000000 | B45: INDEMNIZACIONES COMPAÑIAS DE SEGURO | G45: 192185000 | H45: 192185000 | J45: -192185000
A46: 323090300000000 | B46: RECURSOS FIDUCIA | C46: 103976295000 | F46: 103976295000 | J46: 103976295000
A47: 323099900000000 | B47: OTROS | C47: 30621957000 | F47: 30621957000 | J47: 30621957000

Sheet Gastos
A2: EMPRESA DE ACUEDUCTO ALCANTARILLADO DE BOGOTA
A3: EJECUCION PRESUPUESTAL DE GASTOS
A4: A 31 MARZO DE 2019 | C4: 1 | D4: 2 | E4: 3 | F4: 4=(1+3) | G4: 5 | H4: 6=(4-5) | I4: 7 | J4: 8 | K4: 9=(8/6) | L4: 11 | M4: 12 | N4: 13=(12/6)
A5: CODIGO SECRETARIA DE HACIENDA | B5: RUBRO | C5: PRESUPUESTO INICIAL | D5: MODIFICACIONES MES | E5: MODIFICACIONES ACUMULADAS | F5: PRESUPUESTO DEFINITIVO | G5: SUSPENSION | H5: APROPIACION DISPONIBLE | I5: COMPROMISOS MES | J5: COMPROMISOS ACUMULADOS | K5: % EJEC PPTAL | L5: AUTORIZACIONES DE GIRO | N5: % EJEC AUT. GIRO
L6: MES | M6: ACUMULADO
A7: TOTAL GASTOS + DISPONIBILIDAD FINAL | C7: 5419077626000 | F7: 5419077626000 | H7: 5419077626000 | I7: 92636812709 | J7: 2068213322939 | K7: 0.3816541238 | L7: 209308803057 | M7: 473996035338 | N7: 0.08746802833
A8: 330000000000000 | B8: GASTOS | C8: 5180526062000 | F8: 5180526062000 | H8: 5180526062000 | I8: 92636812709 | J8: 2068213322939 | K8: 0.3992284371 | L8: 209308803057 | M8: 473996035338 | N8: 0.09149573415
A9: 331000000000000 | B9: GASTOS DE FUNCIONAMIENTO | C9: 1291563643000 | F9: 1291563643000 | H9: 1291563643000 | I9: 53544243297 | J9: 517979439497 | K9: 0.401048328 | L9: 65092297122 | M9: 215186572806 | N9: 0.1666093452
A10: 331010000000000 | B10: SERVICIOS PERSONALES | C10: 358789399000 | D10: 1090794300 | E10: 2739653135 | F10: 361529052135 | H10: 361529052135 | I10: 25438696934 | J10: 98067277967 | K10: 0.2712569775 | L10: 20411600753 | M10: 64541855016 | N10: 0.1785246708
A11: 331010100000000 | B11: SERVICIOS PERSONALES ASOCIADOS A LA NOMINA | C11: 225857398000 | E11: 299078879 | F11: 226156476879 | H11: 226156476879 | I11: 13639792265 | J11: 45022646959 | K11: 0.1990774157 | L11: 13667133324 | M11: 45022464011 | N11: 0.1990766067
A12: 331010101000000 | B12: SUELDOS PERSONAL DE NOMINA | C12: 126490927000 | E12: 145583526 | F12: 126636510526 | H12: 126636510526 | I12: 10091031271 | J12: 29331005611 | K12: 0.2316157125 | L12: 10098925771 | M12: 29331005611 | N12: 0.2316157125
A13: 331010102000000 | B13: GASTOS DE REPRESENTACION | C13: 75042000 | F13: 75042000 | H13: 75042000
A14: 331010103000000 | B14: HORAS EXTRAS, DOMINICALES, FESTIVOS, RECARGO NOCTURNO | C14: 16278640000 | F14: 16278640000 | H14: 16278640000 | I14: 1169532369 | J14: 4505065930 | K14: 0.2767470704 | L14: 1169532369 | M14: 4505065930 | N14: 0.2767470704
A15: 331010104000000 | B15: SUBSIDIO DE TRANSPORTE | C15: 1968514000 | F15: 1968514000 | H15: 1968514000 | I15: 97641714 | J15: 330730637 | K15: 0.1680103047 | L15: 97641714 | M15: 330730637 | N15: 0.1680103047
A16: 331010105000000 | B16: SUBSIDIO DE ALIMENTACION | C16: 9532780000 | F16: 9532780000 | H16: 9532780000 | I16: 684551596 | J16: 2409408574 | K16: 0.2527498352 | L16: 684551596 | M16: 2409408574 | N16: 0.2527498352
A17: 331010106000000 | B17: BONIFICACION POR SERVICIOS PRESTADOS | C17: 437010000 | F17: 437010000 | H17: 437010000 | I17: 9566798 | J17: 55192585 | K17: 0.1262959314 | L17: 9566798 | M17: 55192585 | N17: 0.1262959314
A18: 331010107000000 | B18: PRIMA SEMESTRAL | C18: 15809419000 | E18: 46745094 | F18: 15856164094 | H18: 15856164094 | I18: 33532113 | J18: 71064325 | K18: 0.004481810643 | L18: 33532113 | M18: 71064325 | N18: 0.004481810643
A19: 331010109000000 | B19: PRIMA DE NAVIDAD | C19: 16154480000 | E19: 23524325 | F19: 16178004325 | H19: 16178004325 | I19: 19166764 | J19: 34911213 | K19: 0.002157943112 | L19: 19166764 | M19: 34911213 | N19: 0.002157943112
A20: 331010110000000 | B20: PRIMA DE VACACIONES | C20: 17654651000 | E20: 15176975 | F20: 17669827975 | H20: 17669827975 | I20: 770387311 | J20: 2642450023 | K20: 0.1495458828 | L20: 785927660 | M20: 2642450023 | N20: 0.1495458828
A21: 331010111000000 | B21: PRIMA TECNICA | C21: 4209393000 | E21: 68048959 | F21: 4277441959 | H21: 4277441959 | I21: 321074224 | J21: 959308377 | K21: 0.2242715123 | L21: 321074224 | M21: 959308377 | N21: 0.2242715123
A22: 331010112000000 | B22: OTRAS PRIMAS Y BONIFICACIONES | C22: 10407642000 | F22: 10407642000 | H22: 10407642000 | I22: 187837222 | J22: 2674900680 | K22: 0.2570131332 | L22: 191743432 | M22: 2674717732 | N22: 0.256995555
A23: 331010114000000 | B23: QUINQUENIO | C23: 6155108000 | F23: 6155108000 | H23: 6155108000 | I23: 234146896 | J23: 1683780503 | K23: 0.2735582386 | L23: 234146896 | M23: 1683780503 | N23: 0.2735582386
A24: 331010115000000 | B24: INDEMNIZACIONES LABORALES | C24: 100000000 | F24: 100000000 | H24: 100000000
A25: 331010116000000 | B25: CONVENCIONES COLECTIVAS O CONVENIOS | C25: 583792000 | F25: 583792000 | H25: 583792000 | I25: 21323987 | J25: 324828501 | K25: 0.5564113606 | L25: 21323987 | M25: 324828501 | N25: 0.5564113606
A26: 331010200000000 | B26: SERVICIOS PERSONALES INDIRECTOS | C26: 67383543000 | D26: 1090794300 | E26: 2440574256 | F26: 69824117256 | H26: 69824117256 | I26: 7599500416 | J26: 32665823262 | K26: 0.4678300929 | L26: 2450240279 | M26: 3144331543 | N26: 0.04503217035
A27: 331010203000000 | B27: HONORARIOS EMPRESA | C27: 54909345000 | D27: 1090794300 | E27: 2440574256 | F27: 57349919256 | H27: 57349919256 | I27: 7133697697 | J27: 31158860208 | K27: 0.5433113178 | L27: 2142850259 | M27: 2263717688 | N27: 0.03947202921
A28: 331010204000000 | B28: REMUNERACION SERVICIOS TECNICOS | C28: 1568517000 | F28: 1568517000 | H28: 1568517000 | I28: 168292000 | J28: 636228500 | K28: 0.4056242298 | L28: 9879301 | M28: 9879301 | N28: 0.00629849788
A29: 331010299000000 | B29: OTROS GASTOS DE PERSONAL | C29: 10905681000 | F29: 10905681000 | H29: 10905681000 | I29: 297510719 | J29: 870734554 | K29: 0.07984229082 | L29: 297510719 | M29: 870734554 | N29: 0.07984229082
A30: 331010300000000 | B30: APORTES PATRONALES AL SECTOR PRIVADO Y PUBLICO | C30: 65548458000 | F30: 65548458000 | H30: 65548458000 | I30: 4199404253 | J30: 20378807746 | K30: 0.3108968291 | L30: 4294227150 | M30: 16375059462 | N30: 0.2498160897
A31: 331010301000000 | B31: APORTES PATRONALES AL SECTOR PRIVADO | C31: 58397668000 | E31: -14458186868 | F31: 43939481132 | H31: 43939481132 | I31: 2957052426 | J31: 14166744383 | K31: 0.322414922 | L31: 3010565093 | M31: 11297663020 | N31: 0.2571187171
A32: 331010301010000 | B32: CESANTÍAS FONDOS PRIVADOS | C32: 7625219000 | E32: -2380000000 | F32: 5245219000 | H32: 5245219000 | I32: -8621885 | J32: 5082890907 | K32: 0.9690521801 | M32: 5082890907 | N32: 0.9690521801
A33: 331010301020000 | B33: PENSIONES FONDOS PRIVADOS | C33: 21171531000 | E33: -11478186868 | F33: 9693344132 | H33: 9693344132 | I33: 631498787 | J33: 1956964436 | K33: 0.2018874404 | L33: 649146379 | M33: 1325454305 | N33: 0.1367385999
A34: 331010301030000 | B34: SALUD EPS PRIVADAS | C34: 20828865000 | E34: -600000000 | F34: 20228865000 | H34: 20228865000 | I34: 1825488924 | J34: 5559813940 | K34: 0.2748455704 | L34: 1841388814 | M34: 3844702108 | N34: 0.190060199
A35: 331010301050000 | B35: CAJA DE COMPENSACION | C35: 8772053000 | F35: 8772053000 | H35: 8772053000 | I35: 508686600 | J35: 1567075100 | K35: 0.1786440529 | L35: 520029900 | M35: 1044615700 | N35: 0.1190845176
A36: 331010302000000 | B36: APORTES PATRONALES AL SECTOR PUBLICO | C36: 7150790000 | E36: 14458186868 | F36: 21608976868 | H36: 21608976868 | I36: 1242351827 | J36: 6212063363 | K36: 0.2874760522 | L36: 1283662057 | M36: 5077396442 | N36: 0.2349669988
A37: 331010302010000 | B37: CESANTIAS FONDOS PÚBLICOS | E37: 2380000000 | F37: 2380000000 | H37: 2380000000 | J37: 2285717049 | K37: 0.9603853147 | M37: 2285717049 | N37: 0.9603853147
A38: 331010302020000 | B38: PENSIONES FONDOS PÚBLICOS | E38: 11478186868 | F38: 11478186868 | H38: 11478186868 | I38: 907390585 | J38: 2822061734 | K38: 0.2458630241 | L38: 931968722 | M38: 2027613355 | N38: 0.1766492721
A39: 331010302030000 | B39: SALUD EPS PUBLICOS | E39: 600000000 | F39: 600000000 | H39: 600000000 | I39: 21383542 | J39: 77586680 | K39: 0.1293111333 | L39: 23414735 | M39: 56203038 | N39: 0.09367173
A40: 331010302040000 | B40: RIESGOS PROFESIONALES SECTOR PUBLICO | C40: 2124180000 | F40: 2124180000 | H40: 2124180000 | I40: 188142600 | J40: 572066700 | K40: 0.2693117815 | L40: 196149600 | M40: 381211600 | N40: 0.1794629457
A41: 331010302050000 | B41: ICBF | C41: 3036439000 | F41: 3036439000 | H41: 3036439000 | I41: 75260100 | J41: 272766200 | K41: 0.08983095 | L41: 79276200 | M41: 195987700 | N41: 0.06454524527
A42: 331010302060000 | B42: SENA | C42: 1990171000 | F42: 1990171000 | H42: 1990171000 | I42: 50175000 | J42: 181865000 | K42: 0.09138159485 | L42: 52852800 | M42: 130663700 | N42: 0.06565450908
A43: 331020000000000 | B43: GASTOS GENERALES | C43: 500514708000 | D43: -89672300 | E43: -61853025809 | F43: 438661682191 | H43: 438661682191 | I43: 14427949020 | J43: 134657796346 | K43: 0.3069741484 | L43: 14097109179 | M43: 45187808134 | N43: 0.1030128912
A44: 331020100000000 | B44: ADQUISICION DE BIENES | C44: 48492183000 | D44: 710224000 | E44: 1689381573 | F44: 50181564573 | H44: 50181564573 | I44: 268608951 | J44: 17219850589 | K44: 0.3431509307
A45: 331020101000000 | B45: DOTACION | C45: 3286323000 | F45: 3286323000 | H45: 3286323000 | J45: 700524463 | K45: 0.2131636066
A46: 331020102000000 | B46: MATERIALES Y SUMINISTROS | C46: 11871646000 | D46: 800000000 | E46: 800000000 | F46: 12671646000 | H46: 12671646000 | I46: 49997850 | J46: 3291406813 | K46: 0.2597457988
A47: 331020103000000 | B47: GASTOS DE COMPUTADOR | C47: 29306737000 | D47: -89776000 | E47: 889381573 | F47: 30196118573 | H47: 30196118573 | I47: 218611101 | J47: 13227919313 | K47: 0.4380668754
A48: 331020104000000 | B48: COMBUSTIBLES, LUBRICANTES Y LLANTAS | C48: 4027477000 | F48: 4027477000 | H48: 4027477000
A49: 331020200000000 | B49: ADQUISICION DE SERVICIOS | C49: 168488698000 | D49: -964002020 | E49: -1977210830 | F49: 166511487170 | H49: 166511487170 | I49: 2938606283 | J49: 79273498333 | K49: 0.4760842611 | L49: 2073462375 | M49: 16436284504 | N49: 0.09870961327
A50: 331020201000000 | B50: VIATICOS Y GASTOS DE VIAJE | C50: 1178098000 | F50: 1178098000 | H50: 1178098000 | I50: 23832761 | J50: 67953732 | K50: 0.05768088224 | L50: 29534337 | M50: 67953732 | N50: 0.05768088224
A51: 331020202000000 | B51: GASTOS DE TRANSPORTE Y COMUNICACIÓN | C51: 15506533000 | D51: 134000000 | E51: 99500000 | F51: 15606033000 | H51: 15606033000 | I51: 672962920 | J51: 5876765920 | K51: 0.3765701328 | L51: 672962919 | M51: 1145096927 | N51: 0.07337527269
A52: 331020203000000 | B52: IMPRESOS Y PUBLICACIONES | C52: 824609000 | D52: -4952020 | E52: 105694420 | F52: 930303420 | H52: 930303420 | I52: 6682118 | J52: 12327930 | K52: 0.0132515153 | L52: 6682118 | M52: 12327930 | N52: 0.0132515153
A53: 331020204000000 | B53: MANTENIMIENTO Y REPARACIONES | C53: 82189005000 | D53: -948050000 | E53: -2217657000 | F53: 79971348000 | H53: 79971348000 | I53: 112032064 | J53: 35242172996 | K53: 0.4406849938 | L53: 909393418 | M53: 958862672 | N53: 0.01199007765
A54: 331020205000000 | B54: ARRENDAMIENTOS | C54: 12050191000 | D54: -145000000 | E54: -124000000 | F54: 11926191000 | H54: 11926191000 | I54: 522862016 | J54: 9301714808 | K54: 0.7799401173 | L54: 119372245 | M54: 242513124 | N54: 0.02033449942
A55: 331020206000000 | B55: SEGUROS | C55: 29125848000 | F55: 29125848000 | H55: 29125848000 | I55: 19585720 | J55: 19759359904 | K55: 0.6784132055 | L55: 139148790 | M55: 13226851881 | N55: 0.4541276148
A56: 331020207000000 | B56: SUMINISTRO DE ALIMENTOS | C56: 4903521000 | F56: 4903521000 | H56: 4903521000
A57: 331020208000000 | B57: SERVICIOS PUBLICOS | C57: 5865650000 | F57: 5865650000 | H57: 5865650000 | I57: 124809930 | J57: 4570304206 | K57: 0.7791641516 | L57: 99881790 | M57: 675888153 | N57: 0.1152281764
A58: 331020209000000 | B58: CAPACITACION | C58: 900000000 | F58: 900000000 | H58: 900000000 | I58: 33425000 | J58: 57623630 | K58: 0.06402625556 | M58: 8778630 | N58: 0.009754033333
A59: 331020210000000 | B59: BIENESTAR E INCENTIVOS | C59: 4693616000 | F59: 4693616000 | H59: 4693616000
A60: 331020211000000 | B60: PROMOCION INSTITUCIONAL | C60: 6731186000 | E60: 159251750 | F60: 6890437750 | H60: 6890437750 | I60: 1200494000 | J60: 1571399750 | K60: 0.2280551406 | L60: 8676703 | M60: 8676703 | N60: 0.001259238283
A61: 331020212000000 | B61: INTERESES Y COMISIONES | C61: 3011310000 | F61: 3011310000 | H61: 3011310000 | I61: 4279754 | J61: 2293789171 | K61: 0.7617246883 | L61: 4117994 | M61: 5642691 | N61: 0.001873832651
A62: 331020213000000 | B62: SALUD OCUPACIONAL | C62: 1367131000 | F62: 1367131000 | H62: 1367131000 | I62: 215900000 | J62: 448415286 | K62: 0.3279973068 | L62: 13761061 | M62: 13761061 | N62: 0.01006564916
A63: 331020214000000 | B63: PROGRAMAS Y CONVENIOS INSTITUCIONES | C63: 142000000 | F63: 142000000 | H63: 142000000 | I63: 1740000 | J63: 71671000 | K63: 0.5047253521 | L63: 69931000 | M63: 69931000 | N63: 0.492471831
A64: 331020300000000 | B64: OTROS GASTOS GENERALES | C64: 283533827000 | D64: 164105720 | E64: -61565196552 | F64: 221968630448 | H64: 221968630448 | I64: 11220733786 | J64: 38164447424 | K64: 0.1719362207 | L64: 12023646804 | M64: 28751523630 | N64: 0.1295296708
A65: 331020301000000 | B65: IMPUESTOS, TASAS Y MULTAS | C65: 266871794000 | D65: 11000000 | E65: -61284164900 | F65: 205587629100 | H65: 205587629100 | I65: 11167494085 | J65: 36873991043 | K65: 0.1793589974 | L65: 11911857540 | M65: 28611350988 | N65: 0.1391686412
A66: 331020302000000 | B66: SENTENCIAS JUDICIALES | C66: 750000000 | F66: 750000000 | H66: 750000000 | I66: 13435504 | J66: 13874014 | K66: 0.01849868533 | L66: 13435504 | M66: 13874014 | N66: 0.01849868533
A67: 331020399000000 | B67: OTROS GASTOS GENERALES | C67: 15912033000 | D67: 153105720 | E67: -281031652 | F67: 15631001348 | H67: 15631001348 | I67: 39804197 | J67: 1276582367 | K67: 0.0816699032 | L67: 98353760 | M67: 126298628 | N67: 0.008080008772
A68: 331030000000000 | B68: TRANSFERENCIAS CORRIENTES | C68: 312085533000 | E68: -299078879 | F68: 311786454121 | H68: 311786454121 | I68: 13851081983 | J68: 106216152511 | K68: 0.3406695548 | L68: 13795149483 | M68: 43704763157 | N68: 0.140175311
A69: 331030300000000 | B69: TRANSFERENCIAS DE PREVISION Y SEGURIDAD SOCIAL | C69: 311435532000 | E69: -299078879 | F69: 311136453121 | H69: 311136453121 | I69: 13836153483 | J69: 106075703232 | K69: 0.3409298466 | L69: 13780220983 | M69: 43564313878 | N69: 0.1400167465
A70: 331030301000000 | B70: PENSIONES Y JUBILACIONES | C70: 199914405000 | E70: -299078879 | F70: 199615326121 | H70: 199615326121 | I70: 13209791123 | J70: 41091949452 | K70: 0.2058556838 | L70: 13209791123 | M70: 41091949452 | N70: 0.2058556838
A71: 331030302000000 | B71: CESANTIAS | C71: 17646342000 | F71: 17646342000 | H71: 17646342000 | I71: 481962560 | J71: 2202063226 | K71: 0.1247886517 | L71: 481962560 | M71: 2202063226 | N71: 0.1247886517
A72: 331030303000000 | B72: OTRAS TRANSFERENCIAS DE PREVISION SOCIAL | C72: 93874785000 | F72: 93874785000 | H72: 93874785000 | I72: 144399800 | J72: 62781690554 | K72: 0.6687811914 | L72: 88467300 | M72: 270301200 | N72: 0.00287938023
A73: 331030303010000 | B73: FONDO DE VIVIENDA | C73: 29566811000 | F73: 29566811000 | H73: 29566811000
A74: 331030303020000 | B74: PAGOS SERVICIOS MEDICOS CONVENCIONALES | C74: 64307974000 | F74: 64307974000 | H74: 64307974000 | I74: 144399800 | J74: 62781690554 | K74: 0.9762660312 | L74: 88467300 | M74: 270301200 | N74: 0.004203229914
A75: 331030400000000 | B75: OTRAS TRANSFERENCIAS | C75: 650001000 | F75: 650001000 | H75: 650001000 | I75: 14928500 | J75: 140449279 | K75: 0.2160754814 | L75: 14928500 | M75: 140449279 | N75: 0.2160754814
A76: 331030401000000 | B76: DESTINATARIOS DE OTRAS TRANSFERENCIAS | C76: 650001000 | F76: 650001000 | H76: 650001000 | I76: 14928500 | J76: 140449279 | K76: 0.2160754814 | L76: 14928500 | M76: 140449279 | N76: 0.2160754814
A77: 331040000000000 | B77: CUENTAS POR PAGAR | C77: 120174003000 | D77: -1001122000 | E77: 59412451553 | F77: 179586454553 | H77: 179586454553 | I77: -173484640 | J77: 179038212673 | K77: 0.996947198 | L77: 16788437707 | M77: 61752146499 | N77: 0.3438574844
A78: 331040000000000 | B78: CUENTAS POR PAGAR | C78: 120174003000 | D78: -1001122000 | E78: 59412451553 | F78: 179586454553 | H78: 179586454553 | I78: -173484640 | J78: 179038212673 | K78: 0.996947198 | L78: 16788437707 | M78: 61752146499 | N78: 0.3438574844
A79: 332000000000000 | B79: GASTOS DE OPERACION | C79: 317492682000 | F79: 317492682000 | H79: 317492682000 | I79: 2689327104 | J79: 183906254209 | K79: 0.5792456476 | L79: 15754586106 | M79: 34459568851 | N79: 0.1085365768
A80: 332010000000000 | B80: GASTOS DE COMERCIALIZACION | C80: 122590042000 | D80: 2300002000 | E80: -20470393241 | F80: 102119648759 | H80: 102119648759 | I80: 2041395623 | J80: 13796488501 | K80: 0.1351012138 | L80: 1093003539 | M80: 1727806144 | N80: 0.01691942897
A81: 332010100000000 | B81: COMPRA DE BIENES PARA LA VENTA | C81: 4000000000 | F81: 4000000000 | H81: 4000000000 | J81: 3999999580 | K81: 0.999999895
A82: 332010101000000 | B82: MEDIDORES | C82: 4000000000 | F82: 4000000000 | H82: 4000000000 | J82: 3999999580 | K82: 0.999999895
A83: 332010200000000 | B83: COMPRA DE SERVICIOS PARA LA VENTA | C83: 10638855000 | D83: 402147559 | E83: 1030374263 | F83: 11669229263 | H83: 11669229263 | I83: 237565325 | J83: 865792029 | K83: 0.07419444845 | M83: 269255280 | N83: 0.02307395578
A84: 332010201000000 | B84: GESTION COMERCIAL | C84: 10638855000 | D84: 402147559 | E84: 402147559 | F84: 11041002559 | H84: 11041002559 | I84: 237565325 | J84: 237565325 | K84: 0.02151664432
A85: 332010204000000 | B85: PROCESO DE ASEO | E85: 628226704 | F85: 628226704 | H85: 628226704 | J85: 628226704 | K85: 1 | M85: 269255280 | N85: 0.4285957255
A86: 332010500000000 | B86: OTROS GASTOS DE COMERCIALIZACION | C86: 107951187000 | D86: 1897854441 | E86: -21500767504 | F86: 86450419496 | H86: 86450419496 | I86: 1803830298 | J86: 8930696892 | K86: 0.1033042632 | L86: 1093003539 | M86: 1458550864 | N86: 0.01687153021
A87: 332010501000000 | B87: MANTENIMIENTO Y MATERIALES OPERACION INFRAESTRUCTURA | C87: 102301187000 | D87: 1897854441 | E87: -21500767504 | F87: 80800419496 | H87: 80800419496 | I87: 1803830298 | J87: 8930696892 | K87: 0.110527853 | L87: 1093003539 | M87: 1458550864 | N87: 0.01805127836
A88: 332010502000000 | B88: COMERCIALIZACION DE ENERGIA | C88: 150000000 | F88: 150000000 | H88: 150000000
A89: 332010503000000 | B89: FONDO ATENCION EMERGENCIAS | C89: 4000000000 | F89: 4000000000 | H89: 4000000000
A90: 332010504000000 | B90: FONDO OBLIGACIONES CONTIGENTES | C90: 1500000000 | F90: 1500000000 | H90: 1500000000
A91: 332020000000000 | B91: GASTOS DE PRODUCCION | C91: 119951222000 | D91: -2300002000 | E91: -2300002000 | F91: 117651220000 | H91: 117651220000 | I91: 947357042 | J91: 73462272350 | K91: 0.6244072297 | L91: 4739534419 | M91: 10019360999 | N91: 0.08516155633
A92: 332020100000000 | B92: INDUSTRIAL | C92: 119951222000 | D92: -2300002000 | E92: -2300002000 | F92: 117651220000 | H92: 117651220000 | I92: 947357042 | J92: 73462272350 | K92: 0.6244072297 | L92: 4739534419 | M92: 10019360999 | N92: 0.08516155633
A93: 332020101000000 | B93: COMPRA AGUA EN BLOQUE | C93: 19933196000 | F93: 19933196000 | H93: 19933196000
A94: 332020102000000 | B94: ENERGIA PARA BOMBEO | C94: 59707405000 | F94: 59707405000 | H94: 59707405000 | J94: 59707405000 | K94: 1 | L94: 3536151020 | M94: 7205520281 | N94: 0.1206805133
A95: 332020103000000 | B95: TASA POR USO DE AGUA | C95: 6740115000 | F95: 6740115000 | H95: 6740115000 | I95: 758975282 | J95: 758975282 | K95: 0.1126056873
A96: 332020109000000 | B96: PRODUCTOS QUIMICOS | C96: 33570506000 | D96: -2300002000 | E96: -2300002000 | F96: 31270504000 | H96: 31270504000 | I96: 188381760 | J96: 12995892068 | K96: 0.4155958621 | L96: 1203383399 | M96: 2813840718 | N96: 0.08998386204
A97: 332030000000000 | B97: CUENTAS POR PAGAR | C97: 74951418000 | E97: 22770395241 | F97: 97721813241 | H97: 97721813241 | I97: -299425561 | J97: 96647493358 | K97: 0.9890063452 | L97: 9922048148 | M97: 22712401708 | N97: 0.2324189549
A98: 332030000000000 | B98: CUENTAS POR PAGAR | C98: 74951418000 | E98: 22770395241 | F98: 97721813241 | H98: 97721813241 | I98: -299425561 | J98: 96647493358 | K98: 0.9890063452 | L98: 9922048148 | M98: 22712401708 | N98: 0.2324189549
A99: 333000000000000 | B99: SERVICIO DE LA DEUDA | C99: 153572347000 | F99: 153572347000 | H99: 153572347000 | I99: 33862620000 | J99: 132603201470 | K99: 0.8634575434 | L99: 58997084660 | M99: 123045937215 | N99: 0.8012245669
A100: 333010000000000 | B100: DEUDA INTERNA | C100: 133333821000 | E100: -2370570 | F100: 133331450430 | H100: 133331450430 | I100: 33862620000 | J100: 131366508900 | K100: 0.9852627304 | L100: 58997084660 | M100: 121811615215 | N100: 0.9136000158
A101: 333010100000000 | B101: AMORTIZACION | C101: 77404000000 | D101: 37028000000 | E101: 37028000000 | F101: 114432000000 | H101: 114432000000 | I101: 37028000000 | J101: 114431888900 | K101: 0.9999990291 | L101: 55542000000 | M101: 114430888888 | N101: 0.9999902902
A102: 333010200000000 | B102: INTERESES | C102: 55330821000 | D102: -37028000000 | E102: -37030370570 | F102: 18300450430 | H102: 18300450430 | I102: -3165380000 | J102: 16934620000 | K102: 0.9253662944 | L102: 3455084660 | M102: 7380726327 | N102: 0.4033084516
A103: 333010300000000 | B103: COMISIONES Y OTROS | C103: 599000000 | F103: 599000000 | H103: 599000000
A104: 333030000000000 | B104: BONOS PENSIONALES | C104: 3427370000 | F104: 3427370000 | H104: 3427370000 | J104: 1234322000 | K104: 0.3601367813 | M104: 1234322000 | N104: 0.3601367813
A105: 333030000000000 | B105: BONOS PENSIONALES | C105: 3427370000 | F105: 3427370000 | H105: 3427370000 | J105: 1234322000 | K105: 0.3601367813 | M105: 1234322000 | N105: 0.3601367813
A106: 333040000000000 | B106: CUENTAS POR PAGAR | E106: 2370570 | F106: 2370570 | H106: 2370570 | J106: 2370570 | K106: 1
A107: 333040000000000 | B107: CUENTAS POR PAGAR | E107: 2370570 | F107: 2370570 | H107: 2370570 | J107: 2370570 | K107: 1
A108: 333050000000000 | B108: PASIVOS CONTINGENTES | C108: 16811156000 | F108: 16811156000 | H108: 16811156000
A109: 333050000000000 | B109: PASIVOS CONTINGENTES | C109: 16811156000 | F109: 16811156000 | H109: 16811156000
A110: 334000000000000 | B110: INVERSION | C110: 3417897390000 | F110: 3417897390000 | H110: 3417897390000 | I110: 2540622308 | J110: 1233724427763 | K110: 0.3609600544 | L110: 69464835169 | M110: 101303956466 | N110: 0.02963926207
A111: 334010000000000 | B111: DIRECTA | C111: 1783511313000 | D111: 43365401392 | E111: 4429017451 | F111: 1787940330451 | H111: 1787940330451 | I111: 38934155469 | J111: 469013837274 | K111: 0.2623207438 | L111: 12136593913 | M111: 13189874915 | N111: 0.007377133728
A112: 334011500000000 | B112: BOGOTA MEJOR PARA TODOS | C112: 1783511313000 | D112: 43365401392 | E112: 4429017451 | F112: 1787940330451 | H112: 1787940330451 | I112: 38934155469 | J112: 469013837274 | K112: 0.2623207438 | L112: 12136593913 | M112: 13189874915 | N112: 0.007377133728
A113: 334011502000000 | B113: PILAR DEMOCRACIA URBANA | C113: 1590353907000 | D113: 43018804639 | E113: 7688756680 | F113: 1598042663680 | H113: 1598042663680 | I113: 37263034180 | J113: 429383698686 | K113: 0.2686935139 | L113: 12085630375 | M113: 13138911377 | N113: 0.008221877723
A114: 334011502130000 | B114: INFRAESTRUCTURA PARA EL DESARROLLO DEL HABITAT | C114: 1590353907000 | D114: 43018804639 | E114: 7688756680 | F114: 1598042663680 | H114: 1598042663680 | I114: 37263034180 | J114: 429383698686 | K114: 0.2686935139 | L114: 12085630375 | M114: 13138911377 | N114: 0.008221877723
A115: 334011502130133 | B115: INFRAESTRUCTURA PARA EL DESARROLLO DEL HABITAT | C115: 1590353907000 | D115: 43018804639 | E115: 7688756680 | F115: 1598042663680 | H115: 1598042663680 | I115: 37263034180 | J115: 429383698686 | K115: 0.2686935139 | L115: 12085630375 | M115: 13138911377 | N115: 0.008221877723
A116: 334011502130133000019 | B116: 0019 - CONST.REDES LOCALES PARA EL SERVICIO ALCANTARILLADO P | C116: 46423998000 | D116: 977357683 | E116: 977350383 | F116: 47401348383 | H116: 47401348383 | J116: 4813398700 | K116: 0.1015456071 | M116: 274851931 | N116: 0.005798398999
A117: 334011502130133000020 | B117: 0020 - CONST.REDES LOCALES SERVICIO DE ALCANTARILLADO SANITA | C117: 67831563000 | E117: -5477 | F117: 67831557523 | H117: 67831557523 | J117: 2330123523 | K117: 0.03435161462
A118: 334011502130133000021 | B118: 0021 - CONST.SISTEMA TRONCAL Y SECUNDARIO ALCANTARILLADO SAN | C118: 15776019000 | D118: -39876380 | E118: -5006271688 | F118: 10769747312 | H118: 10769747312 | I118: 1042225697 | J118: 3798784022 | K118: 0.3527273122
A119: 334011502130133000022 | B119: 0022 - CONST.SISTEMA TRONCAL Y SECUNDARIO DE ALCANTARILLADO | C119: 16877024000 | D119: 32316948703 | E119: 32522780353 | F119: 49399804353 | H119: 49399804353 | I119: 32317729945 | J119: 46094004875 | K119: 0.9330807172 | L119: 8402608993 | M119: 8601865141 | N119: 0.1741275143
A120: 334011502130133000050 | B120: 0050 - RENOV,REHAB.O REPOS. SIST.ABAST. Y DISTRIB. MATRIZ AC | C120: 361732708000 | D120: 748138607 | E120: -20110998986 | F120: 341621709014 | H120: 341621709014 | I120: -7 | J120: 6804216165 | K120: 0.01991739982 | L120: 3498254493 | M120: 3625002444 | N120: 0.0106111595
A121: 334011502130133000051 | B121: 0051 - RENOV,REHAB.O REPOS.SIST.TRONCAL,SEC. Y LOCAL ALC.SA | C121: 150553278000 | D121: 223897998 | E121: -879051508 | F121: 149674226492 | H121: 149674226492 | J121: 64293710032 | K121: 0.4295576569 | M121: 451403759 | N121: 0.003015908414
A122: 334011502130133000052 | B122: 0052 - RENOV,REHAB.O REPOS.SIST.TRONCAL, SEC. Y LOCAL ALC. P | C122: 97926991000 | D122: 272815881 | E122: -2142922492 | F122: 95784068508 | H122: 95784068508 | J122: 57304585627 | K122: 0.598268444
A123: 334011502130133000053 | B123: 0053 - RENOV,REHAB.O REPOS.SIST.TRONCAL, SEC. Y LOCAL ALC. C | C123: 28895578000 | D123: 52374727 | E123: -1726306423 | F123: 27169271577 | H123: 27169271577 | J123: 15763742149 | K123: 0.5802048135
A124: 334011502130133000054 | B124: 0054 - ACCIONES PARA EL SANEAMIENTO DEL RIO BOGOTA | C124: 85540318000 | D124: 3500138133 | E124: 7202371364 | F124: 92742689364 | H124: 92742689364 | I124: 3500118133 | J124: 82073233040 | K124: 0.8849563626
A125: 334011502130133000068 | B125: 0068 - CONST,RENOV,REHAB.O REPOS.REDES ASOC.A INFRAESTRUCTUR | C125: 75000000000 | D125: 544302000 | E125: 544302000 | F125: 75544302000 | H125: 75544302000
A126: 334011502130133000081 | B126: 0081 - CORREDORES AMBIENTALES | C126: 354634309000 | D126: 5000000000 | E126: -2935026322 | F126: 351699282678 | H126: 351699282678 | I126: 402960412 | J126: 41790849364 | K126: 0.1188255178
A127: 334011502130133007334 | B127: 7334 - CONST.Y EXPANSION SISTEMA ABASTECIMIENTO Y MATRIZ AC | C127: 249020376000 | D127: -577292713 | E127: -693978688 | F127: 248326397312 | H127: 248326397312 | J127: 99524370025 | K127: 0.4007804692 | L127: 184766889 | M127: 185788102 | N127: 0.0007481609044
A128: 334011502130133007338 | B128: 7338 - CONSTRUCCION DE REDES LOCALES PARA EL SERVICIO DE ACU | C128: 40141745000 | E128: -63485836 | F128: 40078259164 | H128: 40078259164 | J128: 4792681164 | K128: 0.1195830673
A129: 334011506000000 | B129: EJE TRANSV. SOSTENIB. AMBIENTAL BASADA EFICIENCIA ENERGETICA | C129: 94382111000 | D129: 171290431 | E129: -368190211 | F129: 94013920789 | H129: 94013920789 | I129: 331207291 | J129: 37313424590 | K129: 0.3968925482 | L129: 50963538 | M129: 50963538 | N129: 0.0005420850186
A130: 334011506380000 | B130: RECUPERACION Y MANEJO ESTRUCTURA ECOLOGICA PRINCIPAL | C130: 8151000000 | D130: 106591140 | E130: 7019069577 | F130: 15170069577 | H130: 15170069577 | I130: 266508000 | J130: 507203378 | K130: 0.03343447935 | L130: 9656443 | M130: 9656443 | N130: 0.0006365457291
A131: 334011506380177 | B131: CONSOLIDACION DE LA ESTRUCTURA ECOLOGICA PRINCIPAL | C131: 8151000000 | D131: 106591140 | E131: 7019069577 | F131: 15170069577 | H131: 15170069577 | I131: 266508000 | J131: 507203378 | K131: 0.03343447935 | L131: 9656443 | M131: 9656443 | N131: 0.0006365457291
A132: 334011506380177007341 | B132: 7341 - ADEC.HIDRAULICA RECUP.AMB.HUMED,QUEBRADAS,RIOS CUENCA | C132: 8151000000 | D132: 106591140 | E132: 7019069577 | F132: 15170069577 | H132: 15170069577 | I132: 266508000 | J132: 507203378 | K132: 0.03343447935 | L132: 9656443 | M132: 9656443 | N132: 0.0006365457291
A133: 334011506380177007341 | B133: ADECUACIÓN HIDRÁULICA Y RECUPERACIÓN AMBIENTAL DE HUMEDALES, | C133: 8151000000 | D133: 106591140 | E133: 7019069577 | F133: 15170069577 | H133: 15170069577 | I133: 266508000 | J133: 507203378 | K133: 0.03343447935 | L133: 9656443 | M133: 9656443 | N133: 0.0006365457291
A134: 334011506390000 | B134: AMBIENTE SANO PARA LA EQUIDAD Y DISFRUTE DEL CIUDADANO | C134: 86231111000 | D134: 64699291 | E134: -7387259788 | F134: 78843851212 | H134: 78843851212 | I134: 64699291 | J134: 36806221212 | K134: 0.4668242437 | L134: 41307095 | M134: 41307095 | N134: 0.0005239101638
A135: 334011506390179 | B135: AMBIENTE SANO | C135: 86231111000 | D135: 64699291 | E135: -7387259788 | F135: 78843851212 | H135: 78843851212 | I135: 64699291 | J135: 36806221212 | K135: 0.4668242437 | L135: 41307095 | M135: 41307095 | N135: 0.0005239101638
A136: 334011506390179000082 | B136: 0082 - PLAN DE SANEAMIENTO Y MANEJO DE VERTIMIENTOS | C136: 86231111000 | D136: 64699291 | E136: -7387259788 | F136: 78843851212 | H136: 78843851212 | I136: 64699291 | J136: 36806221212 | K136: 0.4668242437 | L136: 41307095 | M136: 41307095 | N136: 0.0005239101638
A137: 334011506390179000082 | B137: PLAN DE SANEAMIENTO Y MANEJO DE VERTIMIENTOS | C137: 86231111000 | D137: 64699291 | E137: -7387259788 | F137: 78843851212 | H137: 78843851212 | I137: 64699291 | J137: 36806221212 | K137: 0.4668242437 | L137: 41307095 | M137: 41307095 | N137: 0.0005239101638
A138: 334011507000000 | B138: EJE TRANSVERSAL GOBIERNO LEGITIMO, FORT. LOCAL Y EFICIENTE | C138: 98775295000 | D138: 175306322 | E138: -2891549018 | F138: 95883745982 | H138: 95883745982 | I138: 1339913998 | J138: 2316713998 | K138: 0.0241616968
A139: 334011507420000 | B139: TRANSPARENCIA, GESTION PUBLICA Y SERVICIO A LA CIUDADANIA | C139: 98775295000 | D139: 175306322 | E139: -2891549018 | F139: 95883745982 | H139: 95883745982 | I139: 1339913998 | J139: 2316713998 | K139: 0.0241616968
A140: 334011507420185 | B140: FORTALECIMIENTO A LA GESTION PUBLICA EFECTIVA Y EFICIENTE | C140: 98775295000 | D140: 175306322 | E140: -2891549018 | F140: 95883745982 | H140: 95883745982 | I140: 1339913998 | J140: 2316713998 | K140: 0.0241616968
A141: 334011507420185000055 | B141: 0055 - FORTALECIMIENTO ADMINISTRATIVO Y OPERATIVO EMPRESARIA | C141: 98775295000 | D141: 175306322 | E141: -2891549018 | F141: 95883745982 | H141: 95883745982 | I141: 1339913998 | J141: 2316713998 | K141: 0.0241616968
A142: 334011507420185000055 | B142: FORTALECIMIENTO ADMINISTRATIVO Y OPERATIVO EMPRESARIAL | C142: 98775295000 | D142: 175306322 | E142: -2891549018 | F142: 95883745982 | H142: 95883745982 | I142: 1339913998 | J142: 2316713998 | K142: 0.0241616968
A143: 334020000000000 | B143: TRANSFERENCIAS PARA INVERSION | C143: 872741045000 | D143: -7588190936 | E143: -14461885224 | F143: 858279159776 | H143: 858279159776 | J143: 5000000000 | K143: 0.005825610401 | M143: 5000000000 | N143: 0.005825610401
A144: 334020200000000 | B144: EMPRESAS DISTRITALES | C144: 872741045000 | D144: -7588190936 | E144: -14461885224 | F144: 858279159776 | H144: 858279159776 | J144: 5000000000 | K144: 0.005825610401 | M144: 5000000000 | N144: 0.005825610401
A145: 334030000000000 | B145: CUENTAS POR PAGAR | C145: 761645032000 | D145: -35777210456 | E145: 10032867773 | F145: 771677899773 | H145: 771677899773 | I145: -36393533161 | J145: 759710590489 | K145: 0.9844918336 | L145: 57328241256 | M145: 83114081551 | N145: 0.1077056652
A146: 334030000000000 | B146: CUENTAS POR PAGAR | C146: 761645032000 | D146: -35777210456 | E146: 10032867773 | F146: 771677899773 | H146: 771677899773 | I146: -36393533161 | J146: 759710590489 | K146: 0.9844918336 | L146: 57328241256 | M146: 83114081551 | N146: 0.1077056652
A147: 340000000000000 | B147: DISPONIBILIDAD FINAL | C147: 238551564000 | F147: 238551564000 | H147: 238551564000
A148: 340000000000000 | B148: DISPONIBILIDAD FINAL | C148: 238551564000 | F148: 238551564000 | H148: 238551564000
B152: JULIANA CASTRO BUITRAGO | F152: MAURICIO GOMEZ ARANGO
B153: Directora Presupuesto | F153: Gerente Corporativo Financiero

Sheet Graph (hidden)
G1: FEP8Qry3
F2: Dir. SIE - BI Rev 2014.01
F5: Information
F6: Autor | G6: RAGARCIA | I6: Últ.actual.pantalla | J6: 02/07/2014 09:16:31
F7: Usuario actual | G7: AOCAMPOR | I7: Fe.clave | J7: 02/07/2014
F8: Modificado por | G8: RAGARCIA | I8: Hora de modificación | J8: 12/06/2014 15:20:31
F9: InfoSitio | G9: 0PU_C02 | I9: Actualidad de datos | J9: 02/07/2014 00:39:33
F10: Nombre técnico query | G10: ZPU_C02_Q4001 | I10: Actualidad de datos (fecha) | J10: 02/07/2014
F11: Descripción query | G11: EJECUCION PRESUPUESTAL DE GASTOS - SECRETARIA DE HACIENDA | I11: Actualidad de los datos (hora) | J11: 00:39:33
C14: Filter
C15: Cta Entidades PSM | D15: GASTOS, DISPONIBILIDAD FINAL
C16: Ratios

Sheet V_Futuras_2019-2021
A2: EMPRESA DE ACUEDUCTO ALCANTARILLADO DE BOGOTA | M2: EMPRESA DE ACUEDUCTO ALCANTARILLADO DE BOGOTA | Y2: EMPRESA DE ACUEDUCTO ALCANTARILLADO DE BOGOTA | AK2: EMPRESA DE ACUEDUCTO ALCANTARILLADO DE BOGOTA
A3: EJECUCION PRESUPUESTAL DE VIGENCIAS FUTURAS | M3: EJECUCION PRESUPUESTAL DE VIGENCIAS FUTURAS | Y3: EJECUCION PRESUPUESTAL DE VIGENCIAS FUTURAS | AK3: EJECUCION PRESUPUESTAL DE VIGENCIAS FUTURAS
A4: A 31 MARZO DE 2019 | M4: A 31 DE MARZO DE 2019 | Y4: A 31 MARZO DE 2019 | AK4: A 31 MARZO DE 2019
A6: 2020 | M6: 2021 | Q6: 2020 | Y6: 2022 | AK6: 2020-2022
A7: CODIGO SECRETARIA DE HACIENDA | B7: CONCEPTO | C7: PRESUPUESTO INICIAL | D7: MODIFICACIONES MES | E7: MODIFICACIONES ACUMULADAS | F7: PRESUPUESTO DEFINITIVO | G7: COMPROMISOS MES | H7: COMPROMISOS ACUMULADOS | I7: % EJEC PPTAL | J7: DISPONIBILIDADES MES | K7: DISPONIBILIDADES ACUMULADAS | L7: SALDO DISPONIBLE | M7: CODIGO SECRETARIA DE HACIENDA | N7: CONCEPTO | O7: PRESUPUESTO INICIAL | P7: MODIFICACIONES MES | Q7: MODIFICACIONES ACUMULADAS | R7: PRESUPUESTO DEFINITIVO | S7: COMPROMISOS MES | T7: COMPROMISOS ACUMULADOS | U7: % EJEC PPTAL | V7: DISPONIBILIDADES MES | W7: DISPONIBILIDADES ACUMULADAS | X7: SALDO DISPONIBLE | Y7: CODIGO SECRETARIA DE HACIENDA | Z7: CONCEPTO | AA7: PRESUPUESTO INICIAL | AB7: MODIFICACIONES MES | AC7: MODIFICACIONES ACUMULADAS | AD7: PRESUPUESTO DEFINITIVO | AE7: COMPROMISOS MES | AF7: COMPROMISOS ACUMULADOS | AG7: % EJEC PPTAL | AH7: DISPONIBILIDADES MES | AI7: DISPONIBILIDADES ACUMULADAS | AJ7: SALDO DISPONIBLE | AK7: CODIGO SECRETARIA DE HACIENDA | AL7: CONCEPTO | AM7: Presupuesto Inicial VF Total | AN7: Modificaciones mes VF Total | AO7: Modificaciones Acumuladas VF Total | AP7: Presupuesto Definitivo VF Total | AQ7: Compromisos mes Total | AR7: Compromisos Acumulados Total | AS7: % EJEC PPTAL | AT7: Disponibilidades mes Total | AU7: Disponibilidades Acumuladas Total | AV7: Saldo Disponible Total
A8: 3 | B8: TOTAL GASTOS | C8: =C9 -> 192730564846 | D8: =D9 -> 0 | E8: 384246379360 | F8: 576976944206 | G8: 0 | H8: 192730564846 | I8: =H8/F8 -> 0.3340351236 | J8: 49616495531 | K8: 239033562651 | L8: 145212816709 | M8: 3 | N8: TOTAL GASTOS | O8: =O9 -> 65381426116 | P8: =P9 -> 0 | Q8: =Q9 -> 153513745666 | R8: =R9 -> 218895171782 | S8: =S9 -> 0 | T8: =T9 -> 65381426116 | U8: =T8/R8 -> 0.2986882972 | V8: =V9 -> 15830405888 | W8: =W9 -> 30853389460 | X8: =X9 -> 122660356206 | Y8: 3 | Z8: TOTAL GASTOS | AA8: 0 | AB8: 0 | AC8: 2122857502 | AD8: 2122857502 | AE8: 0 | AF8: 0 | AG8: 0 | AH8: 0 | AI8: 0 | AJ8: 2122857502 | AK8: 3 | AL8: TOTAL GASTOS | AM8: =AM9 -> 258111990962 | AN8: =AN9 -> 0 | AO8: 539882982528 | AP8: 797994973490 | AQ8: 0 | AR8: 258111990962 | AS8: =AR8/AP8 -> 0.3234506476 | AT8: =AT9 -> 65446901365 | AU8: =AU9 -> 269886952111 | AV8: =AV9 -> 269996030417
A9: 330000000000000 | B9: GASTOS | C9: 192730564846 | D9: 0 | E9: 384246379360 | F9: 576976944206 | G9: 0 | H9: 192730564846 | I9: =H9/F9 -> 0.3340351236 | J9: 49616495531 | K9: 239033562651 | L9: 145212816709 | M9: 330000000000000 | N9: GASTOS | O9: 65381426116 | P9: 0 | Q9: 153513745666 | R9: 218895171782 | S9: 0 | T9: 65381426116 | U9: =T9/R9 -> 0.2986882972 | V9: 15830405888 | W9: 30853389460 | X9: 122660356206 | Y9: 330000000000000 | Z9: GASTOS | AA9: 0 | AB9: 0 | AC9: 2122857502 | AD9: 2122857502 | AE9: 0 | AF9: 0 | AG9: 0 | AH9: 0 | AI9: 0 | AJ9: 2122857502 | AK9: 330000000000000 | AL9: GASTOS | AM9: 258111990962 | AN9: 0 | AO9: 539882982528 | AP9: 797994973490 | AQ9: 0 | AR9: 258111990962 | AS9: =AR9/AP9 -> 0.3234506476 | AT9: 65446901365 | AU9: 269886952111 | AV9: 269996030417
A10: 334000000000000 | B10: INVERSION | C10: 192730564846 | D10: 0 | E10: 384246379360 | F10: 576976944206 | G10: 0 | H10: 192730564846 | I10: 0.3340351236 | J10: 49616495531 | K10: 239033562651 | L10: 145212816709 | M10: 334000000000000 | N10: INVERSION | O10: 65381426116 | P10: 0 | Q10: 153513745666 | R10: 218895171782 | S10: 0 | T10: 65381426116 | U10: 0.2986882972 | V10: 15830405888 | W10: 30853389460 | X10: 122660356206 | Y10: 334000000000000 | Z10: INVERSION | AA10: 0 | AB10: 0 | AC10: 2122857502 | AD10: 2122857502 | AE10: 0 | AF10: 0 | AG10: 0 | AH10: 0 | AI10: 0 | AJ10: 2122857502 | AK10: 334000000000000 | AL10: INVERSION | AM10: 258111990962 | AN10: 0 | AO10: 539882982528 | AP10: 797994973490 | AQ10: 0 | AR10: 258111990962 | AS10: 0.3234506476 | AT10: 65446901365 | AU10: 269886952111 | AV10: 269996030417
A11: 334010000000000 | B11: DIRECTA | C11: 192730564846 | D11: 0 | E11: 384246379360 | F11: 576976944206 | G11: 0 | H11: 192730564846 | I11: 0.3340351236 | J11: 49616495531 | K11: 239033562651 | L11: 145212816709 | M11: 334010000000000 | N11: DIRECTA | O11: 65381426116 | P11: 0 | Q11: 153513745666 | R11: 218895171782 | S11: 0 | T11: 65381426116 | U11: 0.2986882972 | V11: 15830405888 | W11: 30853389460 | X11: 122660356206 | Y11: 334010000000000 | Z11: DIRECTA | AA11: 0 | AB11: 0 | AC11: 2122857502 | AD11: 2122857502 | AE11: 0 | AF11: 0 | AG11: 0 | AH11: 0 | AI11: 0 | AJ11: 2122857502 | AK11: 334010000000000 | AL11: DIRECTA | AM11: 258111990962 | AN11: 0 | AO11: 539882982528 | AP11: 797994973490 | AQ11: 0 | AR11: 258111990962 | AS11: 0.3234506476 | AT11: 65446901365 | AU11: 269886952111 | AV11: 269996030417
A12: 334011500000000 | B12: BOGOTÁ MEJOR PARA TODOS | C12: 192730564846 | D12: 0 | E12: 384246379360 | F12: 576976944206 | G12: 0 | H12: 192730564846 | I12: 0.3340351236 | J12: 49616495531 | K12: 239033562651 | L12: 145212816709 | M12: 334011500000000 | N12: BOGOTÁ MEJOR PARA TODOS | O12: 65381426116 | P12: 0 | Q12: 153513745666 | R12: 218895171782 | S12: 0 | T12: 65381426116 | U12: 0.2986882972 | V12: 15830405888 | W12: 30853389460 | X12: 122660356206 | Y12: 334011500000000 | Z12: BOGOTÁ MEJOR PARA TODOS | AA12: 0 | AB12: 0 | AC12: 2122857502 | AD12: 2122857502 | AE12: 0 | AF12: 0 | AG12: 0 | AH12: 0 | AI12: 0 | AJ12: 2122857502 | AK12: 334011500000000 | AL12: BOGOTÁ MEJOR PARA TODOS | AM12: 258111990962 | AN12: 0 | AO12: 539882982528 | AP12: 797994973490 | AQ12: 0 | AR12: 258111990962 | AS12: 0.3234506476 | AT12: 65446901365 | AU12: 269886952111 | AV12: 269996030417
A13: 334011502000000 | B13: PILAR DEMOCRACIA URBANA | C13: 192730564846 | D13: 0 | E13: 384246379360 | F13: 576976944206 | G13: 0 | H13: 192730564846 | I13: 0.3340351236 | J13: 49616495531 | K13: 239033562651 | L13: 145212816709 | M13: 334011502000000 | N13: PILAR DEMOCRACIA URBANA | O13: 65381426116 | P13: 0 | Q13: 153513745666 | R13: 218895171782 | S13: 0 | T13: 65381426116 | U13: 0.2986882972 | V13: 15830405888 | W13: 30853389460 | X13: 122660356206 | Y13: 334011502000000 | Z13: PILAR DEMOCRACIA URBANA | AA13: 0 | AB13: 0 | AC13: 2122857502 | AD13: 2122857502 | AE13: 0 | AF13: 0 | AG13: 0 | AH13: 0 | AI13: 0 | AJ13: 2122857502 | AK13: 334011502000000 | AL13: PILAR DEMOCRACIA URBANA | AM13: 258111990962 | AN13: 0 | AO13: 539882982528 | AP13: 797994973490 | AQ13: 0 | AR13: 258111990962 | AS13: 0.3234506476 | AT13: 65446901365 | AU13: 269886952111 | AV13: 269996030417
A14: 334011502130000 | B14: INFRAESTRUCTURA PARA EL DESARROLLO DEL HÁBITAT. | C14: 192730564846 | D14: 0 | E14: 384246379360 | F14: 576976944206 | G14: 0 | H14: 192730564846 | I14: 0.3340351236 | J14: 49616495531 | K14: 239033562651 | L14: 145212816709 | M14: 334011502130000 | N14: INFRAESTRUCTURA PARA EL DESARROLLO DEL HÁBITAT. | O14: 65381426116 | P14: 0 | Q14: 153513745666 | R14: 218895171782 | S14: 0 | T14: 65381426116 | U14: 0.2986882972 | V14: 15830405888 | W14: 30853389460 | X14: 122660356206 | Y14: 334011502130000 | Z14: INFRAESTRUCTURA PARA EL DESARROLLO DEL HÁBITAT. | AA14: 0 | AB14: 0 | AC14: 2122857502 | AD14: 2122857502 | AE14: 0 | AF14: 0 | AG14: 0 | AH14: 0 | AI14: 0 | AJ14: 2122857502 | AK14: 334011502130000 | AL14: INFRAESTRUCTURA PARA EL DESARROLLO DEL HÁBITAT. | AM14: 258111990962 | AN14: 0 | AO14: 539882982528 | AP14: 797994973490 | AQ14: 0 | AR14: 258111990962 | AS14: 0.3234506476 | AT14: 65446901365 | AU14: 269886952111 | AV14: 269996030417
A15: 334011502130133 | B15: INFRAESTRUCTURA PARA EL DESARROLLO DEL HÁBITAT. | C15: =SUM(C16:C23) -> 192730564846 | D15: =SUM(D16:D23) -> 0 | E15: 384246379360 | F15: 576976944206 | G15: 0 | H15: 192730564846 | I15: 0.3340351236 | J15: 49616495531 | K15: 239033562651 | L15: 145212816709 | M15: 334011502130133 | N15: INFRAESTRUCTURA PARA EL DESARROLLO DEL HÁBITAT. | O15: =SUM(O16:O23) -> 65381426116 | P15: =SUM(P16:P23) -> 0 | Q15: =SUM(Q16:Q23) -> 153513745666 | R15: =SUM(R16:R23) -> 218895171782 | S15: =SUM(S16:S23) -> 0 | T15: =SUM(T16:T23) -> 65381426116 | U15: 0.2986882972 | V15: =SUM(V16:V23) -> 15830405888 | W15: =SUM(W16:W23) -> 30853389460 | X15: =SUM(X16:X23) -> 122660356206 | Y15: 334011502130133 | Z15: INFRAESTRUCTURA PARA EL DESARROLLO DEL HÁBITAT. | AA15: 0 | AB15: 0 | AC15: 2122857502 | AD15: 2122857502 | AE15: 0 | AF15: 0 | AG15: 0 | AH15: 0 | AI15: 0 | AJ15: 2122857502 | AK15: 334011502130133 | AL15: INFRAESTRUCTURA PARA EL DESARROLLO DEL HÁBITAT. | AM15: =SUM(AM16:AM23) -> 258111990962 | AN15: =SUM(AN16:AN23) -> 0 | AO15: 539882982528 | AP15: 797994973490 | AQ15: 0 | AR15: 258111990962 | AS15: 0.3234506476 | AT15: =SUM(AT16:AT23) -> 65446901365 | AU15: =SUM(AU16:AU23) -> 269886952111 | AV15: =SUM(AV16:AV23) -> 269996030417
A16: 334011502130133000020 | B16: CONST. REDES LOCALES SERVICIO DE ALCANTARILLADO SANITARIO | C16: 0 | D16: 0 | E16: 15537880409 | F16: 15537880409 | G16: 0 | H16: 0 | I16: =H16/F16 -> 0 | J16: 0 | K16: 0 | L16: 15537880409 | M16: 334011502130133000020 | N16: CONST. REDES LOCALES SERVICIO DE ALCANTARILLADO SANITARIO | O16: 0 | P16: 0 | Q16: 0 | R16: 0 | S16: 0 | T16: 0 | U16: 0 | V16: 0 | W16: 0 | X16: 0 | Y16: 334011502130133000020 | Z16: CONST. REDES LOCALES SERVICIO DE ALCANTARILLADO SANITARIO | AA16: 0 | AB16: 0 | AC16: 0 | AD16: 0 | AE16: 0 | AF16: 0 | AG16: 0 | AH16: 0 | AI16: 0 | AJ16: 0 | AK16: 334011502130133000020 | AL16: CONST. REDES LOCALES SERVICIO DE ALCANTARILLADO SANITARIO | AM16: 0 | AN16: 0 | AO16: 15537880409 | AP16: 15537880409 | AQ16: 0 | AR16: 0 | AS16: 0 | AT16: 0 | AU16: 0 | AV16: 15537880409
A17: 334011502130133000050 | B17: REN, REHAB O REP SIST ABAST, DIST MATRIZ Y RED LOCAL AC. | C17: 0 | D17: 0 | E17: 149683956996 | F17: 149683956996 | G17: 0 | H17: 0 | I17: =H17/F17 -> 0 | J17: 37630505746 | K17: 40897430602 | L17: 108786526394 | M17: 334011502130133000050 | N17: REN, REHAB O REP SIST ABAST, DIST MATRIZ Y RED LOCAL AC. | O17: 0 | P17: 0 | Q17: 125375021274 | R17: 125375021274 | S17: 0 | T17: 0 | U17: 0 | V17: 11036009974 | W17: 12342779902 | X17: 113032241372 | Y17: 334011502130133000050 | Z17: REN, REHAB O REP SIST ABAST, DIST MATRIZ Y RED LOCAL AC. | AA17: 0 | AB17: 0 | AC17: 2122857502 | AD17: 2122857502 | AE17: 0 | AF17: 0 | AG17: 0 | AH17: 0 | AI17: 0 | AJ17: 2122857502 | AK17: 334011502130133000050 | AL17: REN, REHAB O REP SIST ABAST, DIST MATRIZ Y RED LOCAL AC. | AM17: 0 | AN17: 0 | AO17: 277181835772 | AP17: 277181835772 | AQ17: 0 | AR17: 0 | AS17: 0 | AT17: 48666515666 | AU17: 53240210504 | AV17: 223941625268
A18: 334011502130133000051 | B18: REN, REHAB O REP SIST TRONCAL SECUNDARIO Y LOCAL ALC. SANITA | C18: 0 | D18: 0 | E18: 40720148701 | F18: 40720148701 | G18: 0 | H18: 0 | I18: 0 | J18: 9773744617 | K18: 40720148701 | L18: 0 | M18: 334011502130133000051 | N18: REN, REHAB O REP SIST TRONCAL SECUNDARIO Y LOCAL ALC. SANITA | O18: 0 | P18: 0 | Q18: 16288059492 | R18: 16288059492 | S18: 0 | T18: 0 | U18: 0 | V18: 3909497855 | W18: 16288059492 | X18: 0 | Y18: 334011502130133000051 | Z18: REN, REHAB O REP SIST TRONCAL SECUNDARIO Y LOCAL ALC. SANITA | AA18: 0 | AB18: 0 | AC18: 0 | AD18: 0 | AE18: 0 | AF18: 0 | AG18: 0 | AH18: 0 | AI18: 0 | AJ18: 0 | AK18: 334011502130133000051 | AL18: REN, REHAB O REP SIST TRONCAL SECUNDARIO Y LOCAL ALC. SANITA | AM18: 0 | AN18: 0 | AO18: 57008208193 | AP18: 57008208193 | AQ18: 0 | AR18: 0 | AS18: 0 | AT18: 13683242472 | AU18: 57008208193 | AV18: 0
A19: 334011502130133000052 | B19: REN REHAB O REP SIST TRONCAL SECUNDARIO Y LOCAL ALC. PLUVIAL | C19: 0 | D19: 0 | E19: 5556375192 | F19: 5556375192 | G19: 0 | H19: 0 | I19: 0 | J19: 2212245168 | K19: 5556375192 | L19: 0 | M19: 334011502130133000052 | N19: REN REHAB O REP SIST TRONCAL SECUNDARIO Y LOCAL ALC. PLUVIAL | O19: 0 | P19: 0 | Q19: 2222550066 | R19: 2222550066 | S19: 0 | T19: 0 | U19: 0 | V19: 884898059 | W19: 2222550066 | X19: 0 | Y19: 334011502130133000052 | Z19: REN REHAB O REP SIST TRONCAL SECUNDARIO Y LOCAL ALC. PLUVIAL | AA19: 0 | AB19: 0 | AC19: 0 | AD19: 0 | AE19: 0 | AF19: 0 | AG19: 0 | AH19: 0 | AI19: 0 | AJ19: 0 | AK19: 334011502130133000052 | AL19: REN REHAB O REP SIST TRONCAL SECUNDARIO Y LOCAL ALC. PLUVIAL | AM19: 0 | AN19: 0 | AO19: 7778925258 | AP19: 7778925258 | AQ19: 0 | AR19: 0 | AS19: 0 | AT19: 3097143227 | AU19: 7778925258 | AV19: 0
A20: 334011502130133000053 | B20: REN, REHAB O REP SIST TRONCAL, SECUNDARIO Y LOCAL ALC. COMBI | C20: 1979233837 | D20: 0 | E20: 20888409906 | F20: 22867643743 | G20: 0 | H20: 1979233837 | I20: 0.08655171732 | J20: 0 | K20: 0 | L20: 20888409906 | M20: 334011502130133000053 | N20: REN, REHAB O REP SIST TRONCAL, SECUNDARIO Y LOCAL ALC. COMBI | O20: 0 | P20: 0 | Q20: 9628114834 | R20: 9628114834 | S20: 0 | T20: 0 | U20: 0 | V20: 0 | W20: 0 | X20: 9628114834 | Y20: 334011502130133000053 | Z20: REN, REHAB O REP SIST TRONCAL, SECUNDARIO Y LOCAL ALC. COMBI | AA20: 0 | AB20: 0 | AC20: 0 | AD20: 0 | AE20: 0 | AF20: 0 | AG20: 0 | AH20: 0 | AI20: 0 | AJ20: 0 | AK20: 334011502130133000053 | AL20: REN, REHAB O REP SIST TRONCAL, SECUNDARIO Y LOCAL ALC. COMBI | AM20: 1979233837 | AN20: 0 | AO20: 30516524740 | AP20: 32495758577 | AQ20: 0 | AR20: 1979233837 | AS20: 0.06090745142 | AT20: 0 | AU20: 0 | AV20: 30516524740
A21: 334011502130133000054 | B21: ACCIONES PARA EL SANEAMIENTO DEL RÍO BOGOTÁ | C21: 189945839941 | D21: 0 | E21: 0 | F21: 189945839941 | G21: 0 | H21: 189945839941 | I21: 1 | J21: 0 | K21: 0 | L21: 0 | M21: 334011502130133000054 | N21: ACCIONES PARA EL SANEAMIENTO DEL RÍO BOGOTÁ | O21: 65381426116 | P21: 0 | Q21: 0 | R21: 65381426116 | S21: 0 | T21: 65381426116 | U21: 1 | V21: 0 | W21: 0 | X21: 0 | Y21: 334011502130133000054 | Z21: ACCIONES PARA EL SANEAMIENTO DEL RÍO BOGOTÁ | AA21: 0 | AB21: 0 | AC21: 0 | AD21: 0 | AE21: 0 | AF21: 0 | AG21: 0 | AH21: 0 | AI21: 0 | AJ21: 0 | AK21: 334011502130133000054 | AL21: ACCIONES PARA EL SANEAMIENTO DEL RÍO BOGOTÁ | AM21: 255327266057 | AN21: 0 | AO21: 0 | AP21: 255327266057 | AQ21: 0 | AR21: 255327266057 | AS21: 1 | AT21: 0 | AU21: 0 | AV21: 0
A22: 334011502130133000081 | B22: CORREDORES AMBIENTALES | C22: 0 | D22: 0 | E22: 151859608156 | F22: 151859608156 | G22: 0 | H22: 0 | I22: 0 | J22: 0 | K22: 151859608156 | L22: 0 | M22: 334011502130133000081 | N22: CORREDORES AMBIENTALES | O22: 0 | P22: 0 | Q22: 0 | R22: 0 | S22: 0 | T22: 0 | U22: 0 | V22: 0 | W22: 0 | X22: 0 | Y22: 334011502130133000081 | Z22: CORREDORES AMBIENTALES | AA22: 0 | AB22: 0 | AC22: 0 | AD22: 0 | AE22: 0 | AF22: 0 | AG22: 0 | AH22: 0 | AI22: 0 | AJ22: 0 | AK22: 334011502130133000081 | AL22: CORREDORES AMBIENTALES | AM22: 0 | AN22: 0 | AO22: 151859608156 | AP22: 151859608156 | AQ22: 0 | AR22: 0 | AS22: 0 | AT22: 0 | AU22: 151859608156 | AV22: 0
A23: 334011502130133007338 | B23: CONSTRUCCIÓN DE REDES LOCALES PARA EL SERVICIO DE ACUEDUCTO | C23: 805491068 | D23: 0 | E23: 0 | F23: 805491068 | G23: 0 | H23: 805491068 | I23: 1 | J23: 0 | K23: 0 | L23: 0 | M23: 334011502130133007338 | N23: CONSTRUCCIÓN DE REDES LOCALES PARA EL SERVICIO DE ACUEDUCTO | O23: 0 | P23: 0 | Q23: 0 | R23: 0 | S23: 0 | T23: 0 | U23: 0 | V23: 0 | W23: 0 | X23: 0 | Y23: 334011502130133007338 | Z23: CONSTRUCCIÓN DE REDES LOCALES PARA EL SERVICIO DE ACUEDUCTO | AA23: 0 | AB23: 0 | AC23: 0 | AD23: 0 | AE23: 0 | AF23: 0 | AG23: 0 | AH23: 0 | AI23: 0 | AJ23: 0 | AK23: 334011502130133007338 | AL23: CONSTRUCCIÓN DE REDES LOCALES PARA EL SERVICIO DE ACUEDUCTO | AM23: 805491068 | AN23: 0 | AO23: 0 | AP23: 805491068 | AQ23: 0 | AR23: 805491068 | AS23: 1 | AT23: 0 | AU23: 0 | AV23: 0

Sheet Gastos P
A2: EMPRESA DE ACUEDUCTO ALCANTARILLADO DE BOGOTA
A3: EJECUCION PERSONERIA
A4: A 31 MARZO DE 2019
A5: CODIGO SECRETARIA DE HACIENDA | B5: RUBRO | C5: PRESUPUESTO INICIAL | D5: MODIFICACIONES MES | E5: MODIFICACIONES ACUMULADAS | F5: PRESUPUESTO DEFINITIVO | G5: SUSPENSION | H5: APROPIACION DISPONIBLE | I5: COMPROMISOS MES | J5: COMPROMISOS ACUMULADOS | K5: % EJEC PPTAL | L5: PAC ACUMULADO | M5: AUTORIZACIONES DE GIRO | O5: % EJEC AUT. GIRO | P5: % EJEC GIROS PAC
M6: MES | N6: ACUMULADO
A7: TOTAL GASTOS + DISPONIBILIDAD FINAL | C7: 5419077626000 | D7: 0 | E7: 0 | F7: 5419077626000 | H7: 5419077626000 | I7: 92636812709 | J7: 2068213322939 | K7: 0.3816541238 | L7: 637815296848 | M7: 209308803057 | N7: 473996035338 | O7: 0.08746802833 | P7: 0.7431556403
A8: 330000000000000 | B8: GASTOS | C8: 5180526062000 | D8: 0 | E8: 0 | F8: 5180526062000 | H8: 5180526062000 | I8: 92636812709 | J8: 2068213322939 | K8: 0.3992284371 | L8: 637815296848 | M8: 209308803057 | N8: 473996035338 | O8: 0.09149573415 | P8: 0.7431556403
A9: 331000000000000 | B9: GASTOS DE FUNCIONAMIENTO | C9: 1291563643000 | D9: 0 | E9: 0 | F9: 1291563643000 | H9: 1291563643000 | I9: 53544243297 | J9: 517979439497 | K9: 0.401048328 | L9: 293444390261 | M9: 65092297122 | N9: 215186572806 | O9: 0.1666093452 | P9: 0.7333129545
A10: 331010000000000 | B10: SERVICIOS PERSONALES | C10: 358789399000 | D10: 1090794300 | E10: 2739653135 | F10: 361529052135 | H10: 361529052135 | I10: 25438696934 | J10: 98067277967 | K10: 0.2712569775 | L10: 93875639198 | M10: 20411600753 | N10: 64541855016 | O10: 0.1785246708 | P10: 0.6875250658
A11: 331010100000000 | B11: SERVICIOS PERSONALES ASOCIADOS A LA NOMINA | C11: 225857398000 | D11: 0 | E11: 299078879 | F11: 226156476879 | H11: 226156476879 | I11: 13639792265 | J11: 45022646959 | K11: 0.1990774157 | L11: 63170310838 | M11: 13667133324 | N11: 45022464011 | O11: 0.1990766067 | P11: 0.7127155687
A12: 331010101000000 | B12: SUELDOS PERSONAL DE NOMINA | C12: 126490927000 | D12: 0 | E12: 145583526 | F12: 126636510526 | H12: 126636510526 | I12: 10091031271 | J12: 29331005611 | K12: 0.2316157125 | L12: 31616036163 | M12: 10098925771 | N12: 29331005611 | O12: 0.2316157125 | P12: 0.9277255839
A13: 331010102000000 | B13: GASTOS DE REPRESENTACION | C13: 75042000 | F13: 75042000 | H13: 75042000 | L13: 18760500
A14: 331010103000000 | B14: HORAS EXTRAS, DOMINICALES, FESTIVOS, RECARGO NOCTURNO | C14: 16278640000 | F14: 16278640000 | H14: 16278640000 | I14: 1169532369 | J14: 4505065930 | K14: 0.2767470704 | L14: 4864378958 | M14: 1169532369 | N14: 4505065930 | O14: 0.2767470704 | P14: 0.9261338331
A15: 331010104000000 | B15: SUBSIDIO DE TRANSPORTE | C15: 1968514000 | F15: 1968514000 | H15: 1968514000 | I15: 97641714 | J15: 330730637 | K15: 0.1680103047 | L15: 492128398 | M15: 97641714 | N15: 330730637 | O15: 0.1680103047 | P15: 0.6720413582
A16: 331010105000000 | B16: SUBSIDIO DE ALIMENTACION | C16: 9532780000 | F16: 9532780000 | H16: 9532780000 | I16: 684551596 | J16: 2409408574 | K16: 0.2527498352 | L16: 2483194853 | M16: 684551596 | N16: 2409408574 | O16: 0.2527498352 | P16: 0.9702857474
A17: 331010106000000 | B17: BONIFICACION POR SERVICIOS PRESTADOS | C17: 437010000 | F17: 437010000 | H17: 437010000 | I17: 9566798 | J17: 55192585 | K17: 0.1262959314 | L17: 110361127 | M17: 9566798 | N17: 55192585 | O17: 0.1262959314 | P17: 0.5001089288
A18: 331010107000000 | B18: PRIMA SEMESTRAL | C18: 15809419000 | D18: 0 | E18: 46745094 | F18: 15856164094 | H18: 15856164094 | I18: 33532113 | J18: 71064325 | K18: 0.004481810643 | L18: 8423837992 | M18: 33532113 | N18: 71064325 | O18: 0.004481810643 | P18: 0.008436098257
A19: 331010109000000 | B19: PRIMA DE NAVIDAD | C19: 16154480000 | D19: 0 | E19: 23524325 | F19: 16178004325 | H19: 16178004325 | I19: 19166764 | J19: 34911213 | K19: 0.002157943112 | L19: 4041893510 | M19: 19166764 | N19: 34911213 | O19: 0.002157943112 | P19: 0.008637341116
A20: 331010110000000 | B20: PRIMA DE VACACIONES | C20: 17654651000 | D20: 0 | E20: 15176975 | F20: 17669827975 | H20: 17669827975 | I20: 770387311 | J20: 2642450023 | K20: 0.1495458828 | L20: 3202371802 | M20: 785927660 | N20: 2642450023 | O20: 0.1495458828 | P20: 0.8251540378
A21: 331010111000000 | B21: PRIMA TECNICA | C21: 4209393000 | D21: 0 | E21: 68048959 | F21: 4277441959 | H21: 4277441959 | I21: 321074224 | J21: 959308377 | K21: 0.2242715123 | L21: 1063129390 | M21: 321074224 | N21: 959308377 | O21: 0.2242715123 | P21: 0.9023439536
A22: 331010112000000 | B22: OTRAS PRIMAS Y BONIFICACIONES | C22: 10407642000 | F22: 10407642000 | H22: 10407642000 | I22: 187837222 | J22: 2674900680 | K22: 0.2570131332 | L22: 4193723330 | M22: 191743432 | N22: 2674717732 | O22: 0.256995555 | P22: 0.6377906985
A23: 331010114000000 | B23: QUINQUENIO | C23: 6155108000 | F23: 6155108000 | H23: 6155108000 | I23: 234146896 | J23: 1683780503 | K23: 0.2735582386 | L23: 2051702816 | M23: 234146896 | N23: 1683780503 | O23: 0.2735582386 | P23: 0.8206746561
A24: 331010115000000 | B24: INDEMNIZACIONES LABORALES | C24: 100000000 | F24: 100000000 | H24: 100000000 | L24: 24999999
A25: 331010116000000 | B25: CONVENCIONES COLECTIVAS O CONVENIOS | C25: 583792000 | F25: 583792000 | H25: 583792000 | I25: 21323987 | J25: 324828501 | K25: 0.5564113606 | L25: 583792000 | M25: 21323987 | N25: 324828501 | O25: 0.5564113606 | P25: 0.5564113606
A26: 331010200000000 | B26: SERVICIOS PERSONALES INDIRECTOS | C26: 67383543000 | D26: 1090794300 | E26: 2440574256 | F26: 69824117256 | H26: 69824117256 | I26: 7599500416 | J26: 32665823262 | K26: 0.4678300929 | L26: 6542327802 | M26: 2450240279 | N26: 3144331543 | O26: 0.04503217035 | P26: 0.4806135734
A27: 331010203000000 | B27: HONORARIOS EMPRESA | C27: 54909345000 | D27: 1090794300 | E27: 2440574256 | F27: 57349919256 | H27: 57349919256 | I27: 7133697697 | J27: 31158860208 | K27: 0.5433113178 | L27: 5290741126 | M27: 2142850259 | N27: 2263717688 | O27: 0.03947202921 | P27: 0.4278640051
A28: 331010204000000 | B28: REMUNERACION SERVICIOS TECNICOS | C28: 1568517000 | F28: 1568517000 | H28: 1568517000 | I28: 168292000 | J28: 636228500 | K28: 0.4056242298 | L28: 147098333 | M28: 9879301 | N28: 9879301 | O28: 0.00629849788 | P28: 0.06716120298
A29: 331010299000000 | B29: OTROS GASTOS DE PERSONAL | C29: 10905681000 | F29: 10905681000 | H29: 10905681000 | I29: 297510719 | J29: 870734554 | K29: 0.07984229082 | L29: 1104488343 | M29: 297510719 | N29: 870734554 | O29: 0.07984229082 | P29: 0.7883601122
A30: 331010300000000 | B30: APORTES PATRONALES AL SECTOR PRIVADO Y PUBLICO | C30: 65548458000 | D30: 0 | E30: 0 | F30: 65548458000 | H30: 65548458000 | I30: 4199404253 | J30: 20378807746 | K30: 0.3108968291 | L30: 24163000558 | M30: 4294227150 | N30: 16375059462 | O30: 0.2498160897 | P30: 0.6776914739
A31: 331010301000000 | B31: APORTES PATRONALES AL SECTOR PRIVADO | C31: 58397668000 | D31: 0 | E31: -14458186868 | F31: 43939481132 | H31: 43939481132 | I31: 2957052426 | J31: 14166744383 | K31: 0.322414922 | L31: 16143833484 | M31: 3010565093 | N31: 11297663020 | O31: 0.2571187171 | P31: 0.6998129057
A32: 331010301010000 | B32: CESANTÍAS FONDOS PRIVADOS | C32: 7625219000 | D32: 0 | E32: -2380000000 | F32: 5245219000 | H32: 5245219000 | I32: -8621885 | J32: 5082890907 | K32: 0.9690521801 | L32: 5245219000 | N32: 5082890907 | O32: 0.9690521801 | P32: 0.9690521801
A33: 331010301020000 | B33: PENSIONES FONDOS PRIVADOS | C33: 21171531000 | D33: 0 | E33: -11478186868 | F33: 9693344132 | H33: 9693344132 | I33: 631498787 | J33: 1956964436 | K33: 0.2018874404 | L33: 3096437402 | M33: 649146379 | N33: 1325454305 | O33: 0.1367385999 | P33: 0.4280578397
A34: 331010301030000 | B34: SALUD EPS PRIVADAS | C34: 20828865000 | D34: 0 | E34: -600000000 | F34: 20228865000 | H34: 20228865000 | I34: 1825488924 | J34: 5559813940 | K34: 0.2748455704 | L34: 5607426969 | M34: 1841388814 | N34: 3844702108 | O34: 0.190060199 | P34: 0.6856446155
A35: 331010301050000 | B35: CAJA DE COMPENSACION | C35: 8772053000 | F35: 8772053000 | H35: 8772053000 | I35: 508686600 | J35: 1567075100 | K35: 0.1786440529 | L35: 2194750113 | M35: 520029900 | N35: 1044615700 | O35: 0.1190845176 | P35: 0.47596111
A36: 331010302000000 | B36: APORTES PATRONALES AL SECTOR PUBLICO | C36: 7150790000 | D36: 0 | E36: 14458186868 | F36: 21608976868 | H36: 21608976868 | I36: 1242351827 | J36: 6212063363 | K36: 0.2874760522 | L36: 8019167074 | M36: 1283662057 | N36: 5077396442 | O36: 0.2349669988 | P36: 0.633157583
A37: 331010302010000 | B37: CESANTIAS FONDOS PÚBLICOS | D37: 0 | E37: 2380000000 | F37: 2380000000 | H37: 2380000000 | J37: 2285717049 | K37: 0.9603853147 | L37: 2380000000 | N37: 2285717049 | O37: 0.9603853147 | P37: 0.9603853147
A38: 331010302020000 | B38: PENSIONES FONDOS PÚBLICOS | D38: 0 | E38: 11478186868 | F38: 11478186868 | H38: 11478186868 | I38: 907390585 | J38: 2822061734 | K38: 0.2458630241 | L38: 3200000000 | M38: 931968722 | N38: 2027613355 | O38: 0.1766492721 | P38: 0.6336291734
A39: 331010302030000 | B39: SALUD EPS PUBLICOS | D39: 0 | E39: 600000000 | F39: 600000000 | H39: 600000000 | I39: 21383542 | J39: 77586680 | K39: 0.1293111333 | L39: 600000000 | M39: 23414735 | N39: 56203038 | O39: 0.09367173 | P39: 0.09367173
A40: 331010302040000 | B40: RIESGOS PROFESIONALES SECTOR PUBLICO | C40: 2124180000 | F40: 2124180000 | H40: 2124180000 | I40: 188142600 | J40: 572066700 | K40: 0.2693117815 | L40: 581544251 | M40: 196149600 | N40: 381211600 | O40: 0.1794629457 | P40: 0.6555160667
A41: 331010302050000 | B41: ICBF | C41: 3036439000 | F41: 3036439000 | H41: 3036439000 | I41: 75260100 | J41: 272766200 | K41: 0.08983095 | L41: 759695916 | M41: 79276200 | N41: 195987700 | O41: 0.06454524527 | P41: 0.2579817739
A42: 331010302060000 | B42: SENA | C42: 1990171000 | F42: 1990171000 | H42: 1990171000 | I42: 50175000 | J42: 181865000 | K42: 0.09138159485 | L42: 497926907 | M42: 52852800 | N42: 130663700 | O42: 0.06565450908 | P42: 0.2624154232
A43: 331020000000000 | B43: GASTOS GENERALES | C43: 500514708000 | D43: -89672300 | E43: -61853025809 | F43: 438661682191 | H43: 438661682191 | I43: 14427949020 | J43: 134657796346 | K43: 0.3069741484 | L43: 63116955208 | M43: 14097109179 | N43: 45187808134 | O43: 0.1030128912 | P43: 0.7159377062
A44: 331020100000000 | B44: ADQUISICION DE BIENES | C44: 48492183000 | D44: 710224000 | E44: 1689381573 | F44: 50181564573 | H44: 50181564573 | I44: 268608951 | J44: 17219850589 | K44: 0.3431509307 | L44: 9652392197
A45: 331020101000000 | B45: DOTACION | C45: 3286323000 | F45: 3286323000 | H45: 3286323000 | J45: 700524463 | K45: 0.2131636066 | L45: 0
A46: 331020102000000 | B46: MATERIALES Y SUMINISTROS | C46: 11871646000 | D46: 800000000 | E46: 800000000 | F46: 12671646000 | H46: 12671646000 | I46: 49997850 | J46: 3291406813 | K46: 0.2597457988 | L46: 385169434
A47: 331020103000000 | B47: GASTOS DE COMPUTADOR | C47: 29306737000 | D47: -89776000 | E47: 889381573 | F47: 30196118573 | H47: 30196118573 | I47: 218611101 | J47: 13227919313 | K47: 0.4380668754 | L47: 8997722025
A48: 331020104000000 | B48: COMBUSTIBLES, LUBRICANTES Y LLANTAS | C48: 4027477000 | F48: 4027477000 | H48: 4027477000 | L48: 269500738
A49: 331020200000000 | B49: ADQUISICION DE SERVICIOS | C49: 168488698000 | D49: -964002020 | E49: -1977210830 | F49: 166511487170 | H49: 166511487170 | I49: 2938606283 | J49: 79273498333 | K49: 0.4760842611 | L49: 17956370691 | M49: 2073462375 | N49: 16436284504 | O49: 0.09870961327 | P49: 0.9153455777
A50: 331020201000000 | B50: VIATICOS Y GASTOS DE VIAJE | C50: 1178098000 | F50: 1178098000 | H50: 1178098000 | I50: 23832761 | J50: 67953732 | K50: 0.05768088224 | L50: 294524262 | M50: 29534337 | N50: 67953732 | O50: 0.05768088224 | P50: 0.2307237154
A51: 331020202000000 | B51: GASTOS DE TRANSPORTE Y COMUNICACIÓN | C51: 15506533000 | D51: 134000000 | E51: 99500000 | F51: 15606033000 | H51: 15606033000 | I51: 672962920 | J51: 5876765920 | K51: 0.3765701328 | L51: 1489051617 | M51: 672962919 | N51: 1145096927 | O51: 0.07337527269 | P51: 0.7690109019
A52: 331020203000000 | B52: IMPRESOS Y PUBLICACIONES | C52: 824609000 | D52: -4952020 | E52: 105694420 | F52: 930303420 | H52: 930303420 | I52: 6682118 | J52: 12327930 | K52: 0.0132515153 | L52: 87094021 | M52: 6682118 | N52: 12327930 | O52: 0.0132515153 | P52: 0.1415473744
A53: 331020204000000 | B53: MANTENIMIENTO Y REPARACIONES | C53: 82189005000 | D53: -948050000 | E53: -2217657000 | F53: 79971348000 | H53: 79971348000 | I53: 112032064 | J53: 35242172996 | K53: 0.4406849938 | L53: 1242710588 | M53: 909393418 | N53: 958862672 | O53: 0.01199007765 | P53: 0.7715896857
A54: 331020205000000 | B54: ARRENDAMIENTOS | C54: 12050191000 | D54: -145000000 | E54: -124000000 | F54: 11926191000 | H54: 11926191000 | I54: 522862016 | J54: 9301714808 | K54: 0.7799401173 | L54: 438028165 | M54: 119372245 | N54: 242513124 | O54: 0.02033449942 | P54: 0.55364733
A55: 331020206000000 | B55: SEGUROS | C55: 29125848000 | D55: 0 | E55: 0 | F55: 29125848000 | H55: 29125848000 | I55: 19585720 | J55: 19759359904 | K55: 0.6784132055 | L55: 13268807261 | M55: 139148790 | N55: 13226851881 | O55: 0.4541276148 | P55: 0.9968380444
A56: 331020207000000 | B56: SUMINISTRO DE ALIMENTOS | C56: 4903521000 | F56: 4903521000 | H56: 4903521000 | L56: 0
A57: 331020208000000 | B57: SERVICIOS PUBLICOS | C57: 5865650000 | D57: 0 | E57: 0 | F57: 5865650000 | H57: 5865650000 | I57: 124809930 | J57: 4570304206 | K57: 0.7791641516 | L57: 748999750 | M57: 99881790 | N57: 675888153 | O57: 0.1152281764 | P57: 0.9023876884
A58: 331020209000000 | B58: CAPACITACION | C58: 900000000 | F58: 900000000 | H58: 900000000 | I58: 33425000 | J58: 57623630 | K58: 0.06402625556 | L58: 118702574 | N58: 8778630 | O58: 0.009754033333 | P58: 0.07395484111
A59: 331020210000000 | B59: BIENESTAR E INCENTIVOS | C59: 4693616000 | F59: 4693616000 | H59: 4693616000 | L59: 0
A60: 331020211000000 | B60: PROMOCION INSTITUCIONAL | C60: 6731186000 | D60: 0 | E60: 159251750 | F60: 6890437750 | H60: 6890437750 | I60: 1200494000 | J60: 1571399750 | K60: 0.2280551406 | L60: 167928453 | M60: 8676703 | N60: 8676703 | O60: 0.001259238283 | P60: 0.05166904622
A61: 331020212000000 | B61: INTERESES Y COMISIONES | C61: 3011310000 | D61: 0 | E61: 0 | F61: 3011310000 | H61: 3011310000 | I61: 4279754 | J61: 2293789171 | K61: 0.7617246883 | L61: 6980000 | M61: 4117994 | N61: 5642691 | O61: 0.001873832651 | P61: 0.8084084527
A62: 331020213000000 | B62: SALUD OCUPACIONAL | C62: 1367131000 | F62: 1367131000 | H62: 1367131000 | I62: 215900000 | J62: 448415286 | K62: 0.3279973068 | L62: 21202000 | M62: 13761061 | N62: 13761061 | O62: 0.01006564916 | P62: 0.6490454202
A63: 331020214000000 | B63: PROGRAMAS Y CONVENIOS INSTITUCIONES | C63: 142000000 | F63: 142000000 | H63: 142000000 | I63: 1740000 | J63: 71671000 | K63: 0.5047253521 | L63: 72342000 | M63: 69931000 | N63: 69931000 | O63: 0.492471831 | P63: 0.966672196
A64: 331020300000000 | B64: OTROS GASTOS GENERALES | C64: 283533827000 | D64: 164105720 | E64: -61565196552 | F64: 221968630448 | H64: 221968630448 | I64: 11220733786 | J64: 38164447424 | K64: 0.1719362207 | L64: 35508192320 | M64: 12023646804 | N64: 28751523630 | O64: 0.1295296708 | P64: 0.8097152164
A65: 331020301000000 | B65: IMPUESTOS, TASAS Y MULTAS | C65: 266871794000 | D65: 11000000 | E65: -61284164900 | F65: 205587629100 | H65: 205587629100 | I65: 11167494085 | J65: 36873991043 | K65: 0.1793589974 | L65: 34946259746 | M65: 11911857540 | N65: 28611350988 | O65: 0.1391686412 | P65: 0.8187242697
A66: 331020302000000 | B66: SENTENCIAS JUDICIALES | C66: 750000000 | F66: 750000000 | H66: 750000000 | I66: 13435504 | J66: 13874014 | K66: 0.01849868533 | L66: 187500000 | M66: 13435504 | N66: 13874014 | O66: 0.01849868533 | P66: 0.07399474133
A67: 331020399000000 | B67: OTROS GASTOS GENERALES | C67: 15912033000 | D67: 153105720 | E67: -281031652 | F67: 15631001348 | H67: 15631001348 | I67: 39804197 | J67: 1276582367 | K67: 0.0816699032 | L67: 374432574 | M67: 98353760 | N67: 126298628 | O67: 0.008080008772 | P67: 0.3373067323
A68: 331030000000000 | B68: TRANSFERENCIAS CORRIENTES | C68: 312085533000 | D68: 0 | E68: -299078879 | F68: 311786454121 | H68: 311786454121 | I68: 13851081983 | J68: 106216152511 | K68: 0.3406695548 | L68: 49543304915 | M68: 13795149483 | N68: 43704763157 | O68: 0.140175311 | P68: 0.8821527597
A69: 331030300000000 | B69: TRANSFERENCIAS DE PREVISION Y SEGURIDAD SOCIAL | C69: 311435532000 | D69: 0 | E69: -299078879 | F69: 311136453121 | H69: 311136453121 | I69: 13836153483 | J69: 106075703232 | K69: 0.3409298466 | L69: 49380804914 | M69: 13780220983 | N69: 43564313878 | O69: 0.1400167465 | P69: 0.882211498
A70: 331030301000000 | B70: PENSIONES Y JUBILACIONES | C70: 199914405000 | D70: 0 | E70: -299078879 | F70: 199615326121 | H70: 199615326121 | I70: 13209791123 | J70: 41091949452 | K70: 0.2058556838 | L70: 44027845188 | M70: 13209791123 | N70: 41091949452 | O70: 0.2058556838 | P70: 0.9333172967
A71: 331030302000000 | B71: CESANTIAS | C71: 17646342000 | F71: 17646342000 | H71: 17646342000 | I71: 481962560 | J71: 2202063226 | K71: 0.1247886517 | L71: 4973050794 | M71: 481962560 | N71: 2202063226 | O71: 0.1247886517 | P71: 0.4427992629
A72: 331030303000000 | B72: OTRAS TRANSFERENCIAS DE PREVISION SOCIAL | C72: 93874785000 | D72: 0 | E72: 0 | F72: 93874785000 | H72: 93874785000 | I72: 144399800 | J72: 62781690554 | K72: 0.6687811914 | L72: 379908932 | M72: 88467300 | N72: 270301200 | O72: 0.00287938023 | P72: 0.7114894577
A73: 331030303010000 | B73: FONDO DE VIVIENDA | C73: 29566811000 | F73: 29566811000 | H73: 29566811000 | L73: 0
A74: 331030303020000 | B74: PAGOS SERVICIOS MEDICOS CONVENCIONALES | C74: 64307974000 | D74: 0 | E74: 0 | F74: 64307974000 | H74: 64307974000 | I74: 144399800 | J74: 62781690554 | K74: 0.9762660312 | L74: 379908932 | M74: 88467300 | N74: 270301200 | O74: 0.004203229914 | P74: 0.7114894577
A75: 331030400000000 | B75: OTRAS TRANSFERENCIAS | C75: 650001000 | F75: 650001000 | H75: 650001000 | I75: 14928500 | J75: 140449279 | K75: 0.2160754814 | L75: 162500001 | M75: 14928500 | N75: 140449279 | O75: 0.2160754814 | P75: 0.8643032501
A76: 331030401000000 | B76: DESTINATARIOS DE OTRAS TRANSFERENCIAS | C76: 650001000 | F76: 650001000 | H76: 650001000 | I76: 14928500 | J76: 140449279 | K76: 0.2160754814 | L76: 162500001 | M76: 14928500 | N76: 140449279 | O76: 0.2160754814 | P76: 0.8643032501
A77: 331040000000000 | B77: CUENTAS POR PAGAR | C77: 120174003000 | D77: -1001122000 | E77: 59412451553 | F77: 179586454553 | H77: 179586454553 | I77: -173484640 | J77: 179038212673 | K77: 0.996947198 | L77: 86908490940 | M77: 16788437707 | N77: 61752146499 | O77: 0.3438574844 | P77: 0.7105421557
A78: 331040000000000 | B78: CUENTAS POR PAGAR | C78: 120174003000 | D78: -1001122000 | E78: 59412451553 | F78: 179586454553 | H78: 179586454553 | I78: -173484640 | J78: 179038212673 | K78: 0.996947198 | L78: 86908490940 | M78: 16788437707 | N78: 61752146499 | O78: 0.3438574844 | P78: 0.7105421557
A79: 332000000000000 | B79: GASTOS DE OPERACION | C79: 317492682000 | D79: 0 | E79: 0 | F79: 317492682000 | H79: 317492682000 | I79: 2689327104 | J79: 183906254209 | K79: 0.5792456476 | L79: 45411424282 | M79: 15754586106 | N79: 34459568851 | O79: 0.1085365768 | P79: 0.7588303912
A80: 332010000000000 | B80: GASTOS DE COMERCIALIZACION | C80: 122590042000 | D80: 2300002000 | E80: -20470393241 | F80: 102119648759 | H80: 102119648759 | I80: 2041395623 | J80: 13796488501 | K80: 0.1351012138 | L80: 1900059052 | M80: 1093003539 | N80: 1727806144 | O80: 0.01691942897 | P80: 0.9093433923
A81: 332010100000000 | B81: COMPRA DE BIENES PARA LA VENTA | C81: 4000000000 | D81: 0 | E81: 0 | F81: 4000000000 | H81: 4000000000 | J81: 3999999580 | K81: 0.999999895
A82: 332010101000000 | B82: MEDIDORES | C82: 4000000000 | D82: 0 | E82: 0 | F82: 4000000000 | H82: 4000000000 | J82: 3999999580 | K82: 0.999999895
A83: 332010200000000 | B83: COMPRA DE SERVICIOS PARA LA VENTA | C83: 10638855000 | D83: 402147559 | E83: 1030374263 | F83: 11669229263 | H83: 11669229263 | I83: 237565325 | J83: 865792029 | K83: 0.07419444845 | L83: 441508188 | N83: 269255280 | O83: 0.02307395578 | P83: 0.6098534236
A84: 332010201000000 | B84: GESTION COMERCIAL | C84: 10638855000 | D84: 402147559 | E84: 402147559 | F84: 11041002559 | H84: 11041002559 | I84: 237565325 | J84: 237565325 | K84: 0.02151664432 | L84: 55901666
A85: 332010204000000 | B85: PROCESO DE ASEO | D85: 0 | E85: 628226704 | F85: 628226704 | H85: 628226704 | J85: 628226704 | K85: 1 | L85: 385606522 | N85: 269255280 | O85: 0.4285957255 | P85: 0.6982643307
A86: 332010500000000 | B86: OTROS GASTOS DE COMERCIALIZACION | C86: 107951187000 | D86: 1897854441 | E86: -21500767504 | F86: 86450419496 | H86: 86450419496 | I86: 1803830298 | J86: 8930696892 | K86: 0.1033042632 | L86: 1458550864 | M86: 1093003539 | N86: 1458550864 | O86: 0.01687153021 | P86: 1
A87: 332010501000000 | B87: MANTENIMIENTO Y MATERIALES OPERACION INFRAESTRUCTURA | C87: 102301187000 | D87: 1897854441 | E87: -21500767504 | F87: 80800419496 | H87: 80800419496 | I87: 1803830298 | J87: 8930696892 | K87: 0.110527853 | L87: 1458550864 | M87: 1093003539 | N87: 1458550864 | O87: 0.01805127836 | P87: 1
A88: 332010502000000 | B88: COMERCIALIZACION DE ENERGIA | C88: 150000000 | F88: 150000000 | H88: 150000000
A89: 332010503000000 | B89: FONDO ATENCION EMERGENCIAS | C89: 4000000000 | F89: 4000000000 | H89: 4000000000
A90: 332010504000000 | B90: FONDO OBLIGACIONES CONTIGENTES | C90: 1500000000 | F90: 1500000000 | H90: 1500000000
A91: 332020000000000 | B91: GASTOS DE PRODUCCION | C91: 119951222000 | D91: -2300002000 | E91: -2300002000 | F91: 117651220000 | H91: 117651220000 | I91: 947357042 | J91: 73462272350 | K91: 0.6244072297 | L91: 12096182097 | M91: 4739534419 | N91: 10019360999 | O91: 0.08516155633 | P91: 0.8283077188
A92: 332020100000000 | B92: INDUSTRIAL | C92: 119951222000 | D92: -2300002000 | E92: -2300002000 | F92: 117651220000 | H92: 117651220000 | I92: 947357042 | J92: 73462272350 | K92: 0.6244072297 | L92: 12096182097 | M92: 4739534419 | N92: 10019360999 | O92: 0.08516155633 | P92: 0.8283077188
A93: 332020101000000 | B93: COMPRA AGUA EN BLOQUE | C93: 19933196000 | F93: 19933196000 | H93: 19933196000 | L93: 0
A94: 332020102000000 | B94: ENERGIA PARA BOMBEO | C94: 59707405000 | D94: 0 | E94: 0 | F94: 59707405000 | H94: 59707405000 | I94: 0 | J94: 59707405000 | K94: 1 | L94: 7606359600 | M94: 3536151020 | N94: 7205520281 | O94: 0.1206805133 | P94: 0.9473020814
A95: 332020103000000 | B95: TASA POR USO DE AGUA | C95: 6740115000 | D95: 0 | E95: 0 | F95: 6740115000 | H95: 6740115000 | I95: 758975282 | J95: 758975282 | K95: 0.1126056873 | L95: 0
A96: 332020109000000 | B96: PRODUCTOS QUIMICOS | C96: 33570506000 | D96: -2300002000 | E96: -2300002000 | F96: 31270504000 | H96: 31270504000 | I96: 188381760 | J96: 12995892068 | K96: 0.4155958621 | L96: 4489822497 | M96: 1203383399 | N96: 2813840718 | O96: 0.08998386204 | P96: 0.626715359
A97: 332030000000000 | B97: CUENTAS POR PAGAR | C97: 74951418000 | D97: 0 | E97: 22770395241 | F97: 97721813241 | H97: 97721813241 | I97: -299425561 | J97: 96647493358 | K97: 0.9890063452 | L97: 31415183133 | M97: 9922048148 | N97: 22712401708 | O97: 0.2324189549 | P97: 0.7229753082
A98: 332030000000000 | B98: CUENTAS POR PAGAR | C98: 74951418000 | D98: 0 | E98: 22770395241 | F98: 97721813241 | H98: 97721813241 | I98: -299425561 | J98: 96647493358 | K98: 0.9890063452 | L98: 31415183133 | M98: 9922048148 | N98: 22712401708 | O98: 0.2324189549 | P98: 0.7229753082
A99: 333000000000000 | B99: SERVICIO DE LA DEUDA | C99: 153572347000 | D99: 0 | E99: 0 | F99: 153572347000 | H99: 153572347000 | I99: 33862620000 | J99: 132603201470 | K99: 0.8634575434 | L99: 124993787031 | M99: 58997084660 | N99: 123045937215 | O99: 0.8012245669 | P99: 0.9844164269
A100: 333010000000000 | B100: DEUDA INTERNA | C100: 133333821000 | D100: 0 | E100: -2370570 | F100: 133331450430 | H100: 133331450430 | I100: 33862620000 | J100: 131366508900 | K100: 0.9852627304 | L100: 122420888890 | M100: 58997084660 | N100: 121811615215 | O100: 0.9136000158 | P100: 0.9950231233
A101: 333010100000000 | B101: AMORTIZACION | C101: 77404000000 | D101: 37028000000 | E101: 37028000000 | F101: 114432000000 | H101: 114432000000 | I101: 37028000000 | J101: 114431888900 | K101: 0.9999990291 | L101: 114432000000 | M101: 55542000000 | N101: 114430888888 | O101: 0.9999902902 | P101: 0.9999902902
A102: 333010200000000 | B102: INTERESES | C102: 55330821000 | D102: -37028000000 | E102: -37030370570 | F102: 18300450430 | H102: 18300450430 | I102: -3165380000 | J102: 16934620000 | K102: 0.9253662944 | L102: 7988888890 | M102: 3455084660 | N102: 7380726327 | O102: 0.4033084516 | P102: 0.923873949
A103: 333010300000000 | B103: COMISIONES Y OTROS | C103: 599000000 | F103: 599000000 | H103: 599000000
A104: 333030000000000 | B104: BONOS PENSIONALES | C104: 3427370000 | F104: 3427370000 | H104: 3427370000 | J104: 1234322000 | K104: 0.3601367813 | L104: 2572898141 | N104: 1234322000 | O104: 0.3601367813 | P104: 0.4797399401
A105: 333030000000000 | B105: BONOS PENSIONALES | C105: 3427370000 | F105: 3427370000 | H105: 3427370000 | J105: 1234322000 | K105: 0.3601367813 | L105: 2572898141 | N105: 1234322000 | O105: 0.3601367813 | P105: 0.4797399401
A106: 333040000000000 | B106: CUENTAS POR PAGAR | D106: 0 | E106: 2370570 | F106: 2370570 | H106: 2370570 | J106: 2370570 | K106: 1
A107: 333040000000000 | B107: CUENTAS POR PAGAR | D107: 0 | E107: 2370570 | F107: 2370570 | H107: 2370570 | J107: 2370570 | K107: 1
A108: 333050000000000 | B108: PASIVOS CONTINGENTES | C108: 16811156000 | F108: 16811156000 | H108: 16811156000
A109: 333050000000000 | B109: PASIVOS CONTINGENTES | C109: 16811156000 | F109: 16811156000 | H109: 16811156000
A110: 334000000000000 | B110: INVERSION | C110: 3417897390000 | D110: 0 | E110: 0 | F110: 3417897390000 | H110: 3417897390000 | I110: 2540622308 | J110: 1233724427763 | K110: 0.3609600544 | L110: 173965695274 | M110: 69464835169 | N110: 101303956466 | O110: 0.02963926207 | P110: 0.5823214531
A111: 334010000000000 | B111: DIRECTA | C111: 1783511313000 | D111: 43365401392 | E111: 4429017451 | F111: 1787940330451 | H111: 1787940330451 | I111: 38934155469 | J111: 469013837274 | K111: 0.2623207438 | L111: 18467805207 | M111: 12136593913 | N111: 13189874915 | O111: 0.007377133728 | P111: 0.7142091205
A112: 334011500000000 | B112: BOGOTA MEJOR PARA TODOS | C112: 1783511313000 | D112: 43365401392 | E112: 4429017451 | F112: 1787940330451 | H112: 1787940330451 | I112: 38934155469 | J112: 469013837274 | K112: 0.2623207438 | L112: 18467805207 | M112: 12136593913 | N112: 13189874915 | O112: 0.007377133728 | P112: 0.7142091205
A113: 334011502000000 | B113: PILAR DEMOCRACIA URBANA | C113: 1590353907000 | D113: 43018804639 | E113: 7688756680 | F113: 1598042663680 | H113: 1598042663680 | I113: 37263034180 | J113: 429383698686 | K113: 0.2686935139 | L113: 16501313651 | M113: 12085630375 | N113: 13138911377 | O113: 0.008221877723 | P113: 0.7962342669
A114: 334011502130000 | B114: INFRAESTRUCTURA PARA EL DESARROLLO DEL HABITAT | C114: 1590353907000 | D114: 43018804639 | E114: 7688756680 | F114: 1598042663680 | H114: 1598042663680 | I114: 37263034180 | J114: 429383698686 | K114: 0.2686935139 | L114: 16501313651 | M114: 12085630375 | N114: 13138911377 | O114: 0.008221877723 | P114: 0.7962342669
A115: 334011502130133 | B115: INFRAESTRUCTURA PARA EL DESARROLLO DEL HABITAT | C115: 1590353907000 | D115: 43018804639 | E115: 7688756680 | F115: 1598042663680 | H115: 1598042663680 | I115: 37263034180 | J115: 429383698686 | K115: 0.2686935139 | L115: 16501313651 | M115: 12085630375 | N115: 13138911377 | O115: 0.008221877723 | P115: 0.7962342669
A116: 334011502130133000019 | B116: 0019 - CONST.REDES LOCALES PARA EL SERVICIO ALCANTARILLADO P | C116: 46423998000 | D116: 977357683 | E116: 977350383 | F116: 47401348383 | H116: 47401348383 | J116: 4813398700 | K116: 0.1015456071 | L116: 274851931 | N116: 274851931 | O116: 0.005798398999 | P116: 1
A117: 334011502130133000019 | B117: CONST. REDES LOCALES SERVICIO DE ALCANTARILLADO PLUVIAL | C117: 46423998000 | D117: 977357683 | E117: 977350383 | F117: 47401348383 | H117: 47401348383 | J117: 4813398700 | K117: 0.1015456071 | L117: 274851931 | N117: 274851931 | O117: 0.005798398999 | P117: 1
A118: 334011502130133000020 | B118: 0020 - CONST.REDES LOCALES SERVICIO DE ALCANTARILLADO SANITA | C118: 67831563000 | D118: 0 | E118: -5477 | F118: 67831557523 | H118: 67831557523 | J118: 2330123523 | K118: 0.03435161462 | L118: 69818
A119: 334011502130133000020 | B119: CONST. REDES LOCALES SERVICIO DE ALCANTARILLADO SANITARIO | C119: 67831563000 | D119: 0 | E119: -5477 | F119: 67831557523 | H119: 67831557523 | J119: 2330123523 | K119: 0.03435161462 | L119: 69818
A120: 334011502130133000021 | B120: 0021 - CONST.SISTEMA TRONCAL Y SECUNDARIO ALCANTARILLADO SAN | C120: 15776019000 | D120: -39876380 | E120: -5006271688 | F120: 10769747312 | H120: 10769747312 | I120: 1042225697 | J120: 3798784022 | K120: 0.3527273122 | L120: 667012364
A121: 334011502130133000021 | B121: CONST. SISTEMA TRONCAL Y SECUNDARIO ALCANTARILLADO SANITARIO | C121: 15776019000 | D121: -39876380 | E121: -5006271688 | F121: 10769747312 | H121: 10769747312 | I121: 1042225697 | J121: 3798784022 | K121: 0.3527273122 | L121: 667012364
A122: 334011502130133000022 | B122: 0022 - CONST.SISTEMA TRONCAL Y SECUNDARIO DE ALCANTARILLADO | C122: 16877024000 | D122: 32316948703 | E122: 32522780353 | F122: 49399804353 | H122: 49399804353 | I122: 32317729945 | J122: 46094004875 | K122: 0.9330807172 | L122: 8812429908 | M122: 8402608993 | N122: 8601865141 | O122: 0.1741275143 | P122: 0.9761059357
A123: 334011502130133000022 | B123: CONST. SISTEMA TRONCAL Y SECUNDARIO ALCANTARILLADO PLUVIAL | C123: 16877024000 | D123: 32316948703 | E123: 32522780353 | F123: 49399804353 | H123: 49399804353 | I123: 32317729945 | J123: 46094004875 | K123: 0.9330807172 | L123: 8812429908 | M123: 8402608993 | N123: 8601865141 | O123: 0.1741275143 | P123: 0.9761059357
A124: 334011502130133000050 | B124: 0050 - RENOV,REHAB.O REPOS. SIST.ABAST. Y DISTRIB. MATRIZ AC | C124: 361732708000 | D124: 748138607 | E124: -20110998986 | F124: 341621709014 | H124: 341621709014 | I124: -7 | J124: 6804216165 | K124: 0.01991739982 | L124: 3997732325 | M124: 3498254493 | N124: 3625002444 | O124: 0.0106111595 | P124: 0.9067646729
A125: 334011502130133000050 | B125: REN, REHAB O REP SIST ABAST, DIST MATRIZ Y RED LOCAL AC. | C125: 361732708000 | D125: 748138607 | E125: -20110998986 | F125: 341621709014 | H125: 341621709014 | I125: -7 | J125: 6804216165 | K125: 0.01991739982 | L125: 3997732325 | M125: 3498254493 | N125: 3625002444 | O125: 0.0106111595 | P125: 0.9067646729
A126: 334011502130133000051 | B126: 0051 - RENOV,REHAB.O REPOS.SIST.TRONCAL,SEC. Y LOCAL ALC.SA | C126: 150553278000 | D126: 223897998 | E126: -879051508 | F126: 149674226492 | H126: 149674226492 | I126: 0 | J126: 64293710032 | K126: 0.4295576569 | L126: 451403759 | N126: 451403759 | O126: 0.003015908414 | P126: 1
A127: 334011502130133000051 | B127: REN, REHAB O REP SIST TRONCAL SECUNDARIO Y LOCAL ALC. SANITA | C127: 150553278000 | D127: 223897998 | E127: -879051508 | F127: 149674226492 | H127: 149674226492 | I127: 0 | J127: 64293710032 | K127: 0.4295576569 | L127: 451403759 | N127: 451403759 | O127: 0.003015908414 | P127: 1
A128: 334011502130133000052 | B128: 0052 - RENOV,REHAB.O REPOS.SIST.TRONCAL, SEC. Y LOCAL ALC. P | C128: 97926991000 | D128: 272815881 | E128: -2142922492 | F128: 95784068508 | H128: 95784068508 | I128: 0 | J128: 57304585627 | K128: 0.598268444 | L128: 2074592812
A129: 334011502130133000052 | B129: REN REHAB O REP SIST TRONCAL SECUNDARIO Y LOCAL ALC. PLUVIAL | C129: 97926991000 | D129: 272815881 | E129: -2142922492 | F129: 95784068508 | H129: 95784068508 | I129: 0 | J129: 57304585627 | K129: 0.598268444 | L129: 2074592812
A130: 334011502130133000053 | B130: 0053 - RENOV,REHAB.O REPOS.SIST.TRONCAL, SEC. Y LOCAL ALC. C | C130: 28895578000 | D130: 52374727 | E130: -1726306423 | F130: 27169271577 | H130: 27169271577 | J130: 15763742149 | K130: 0.5802048135 | L130: 0
A131: 334011502130133000053 | B131: REN, REHAB O REP SIST TRONCAL, SECUNDARIO Y LOCAL ALC. COMBI | C131: 28895578000 | D131: 52374727 | E131: -1726306423 | F131: 27169271577 | H131: 27169271577 | J131: 15763742149 | K131: 0.5802048135 | L131: 0
A132: 334011502130133000054 | B132: 0054 - ACCIONES PARA EL SANEAMIENTO DEL RIO BOGOTA | C132: 85540318000 | D132: 3500138133 | E132: 7202371364 | F132: 92742689364 | H132: 92742689364 | I132: 3500118133 | J132: 82073233040 | K132: 0.8849563626 | L132: 0
A133: 334011502130133000054 | B133: ACCIONES PARA EL SANEAMIENTO DEL RÍO BOGOTÁ | C133: 85540318000 | D133: 3500138133 | E133: 7202371364 | F133: 92742689364 | H133: 92742689364 | I133: 3500118133 | J133: 82073233040 | K133: 0.8849563626 | L133: 0
A134: 334011502130133000068 | B134: 0068 - CONST,RENOV,REHAB.O REPOS.REDES ASOC.A INFRAESTRUCTUR | C134: 75000000000 | D134: 544302000 | E134: 544302000 | F134: 75544302000 | H134: 75544302000
A135: 334011502130133000068 | B135: CONST, REN, REHAB O REP REDES ASOCIADAS INFRAESTRUCTURA VIAL | C135: 75000000000 | D135: 544302000 | E135: 544302000 | F135: 75544302000 | H135: 75544302000
A136: 334011502130133000081 | B136: 0081 - CORREDORES AMBIENTALES | C136: 354634309000 | D136: 5000000000 | E136: -2935026322 | F136: 351699282678 | H136: 351699282678 | I136: 402960412 | J136: 41790849364 | K136: 0.1188255178 | L136: 132499
A137: 334011502130133000081 | B137: CORREDORES AMBIENTALES | C137: 354634309000 | D137: 5000000000 | E137: -2935026322 | F137: 351699282678 | H137: 351699282678 | I137: 402960412 | J137: 41790849364 | K137: 0.1188255178 | L137: 132499
A138: 334011502130133007334 | B138: 7334 - CONST.Y EXPANSION SISTEMA ABASTECIMIENTO Y MATRIZ AC | C138: 249020376000 | D138: -577292713 | E138: -693978688 | F138: 248326397312 | H138: 248326397312 | I138: 0 | J138: 99524370025 | K138: 0.4007804692 | L138: 223088235 | M138: 184766889 | N138: 185788102 | O138: 0.0007481609044 | P138: 0.8328009857
A139: 334011502130133007334 | B139: CONST Y EXPANSIÓN DEL SISTEMA DE ABASTECIMIENTO Y MATRIZ AC. | C139: 249020376000 | D139: -577292713 | E139: -693978688 | F139: 248326397312 | H139: 248326397312 | I139: 0 | J139: 99524370025 | K139: 0.4007804692 | L139: 223088235 | M139: 184766889 | N139: 185788102 | O139: 0.0007481609044 | P139: 0.8328009857
A140: 334011502130133007338 | B140: 7338 - CONSTRUCCION DE REDES LOCALES PARA EL SERVICIO DE ACU | C140: 40141745000 | D140: 0 | E140: -63485836 | F140: 40078259164 | H140: 40078259164 | J140: 4792681164 | K140: 0.1195830673 | L140: 0
A141: 334011502130133007338 | B141: CONSTRUCCIÓN DE REDES LOCALES PARA EL SERVICIO DE ACUEDUCTO | C141: 40141745000 | D141: 0 | E141: -63485836 | F141: 40078259164 | H141: 40078259164 | J141: 4792681164 | K141: 0.1195830673 | L141: 0
A142: 334011506000000 | B142: EJE TRANSV. SOSTENIB. AMBIENTAL BASADA EFICIENCIA ENERGETICA | C142: 94382111000 | D142: 171290431 | E142: -368190211 | F142: 94013920789 | H142: 94013920789 | I142: 331207291 | J142: 37313424590 | K142: 0.3968925482 | L142: 1786502694 | M142: 50963538 | N142: 50963538 | O142: 0.0005420850186 | P142: 0.02852698637
A143: 334011506380000 | B143: RECUPERACION Y MANEJO ESTRUCTURA ECOLOGICA PRINCIPAL | C143: 8151000000 | D143: 106591140 | E143: 7019069577 | F143: 15170069577 | H143: 15170069577 | I143: 266508000 | J143: 507203378 | K143: 0.03343447935 | L143: 922777460 | M143: 9656443 | N143: 9656443 | O143: 0.0006365457291 | P143: 0.01046454147
A144: 334011506380177 | B144: CONSOLIDACION DE LA ESTRUCTURA ECOLOGICA PRINCIPAL | C144: 8151000000 | D144: 106591140 | E144: 7019069577 | F144: 15170069577 | H144: 15170069577 | I144: 266508000 | J144: 507203378 | K144: 0.03343447935 | L144: 922777460 | M144: 9656443 | N144: 9656443 | O144: 0.0006365457291 | P144: 0.01046454147
A145: 334011506380177007341 | B145: 7341 - ADEC.HIDRAULICA RECUP.AMB.HUMED,QUEBRADAS,RIOS CUENCA | C145: 8151000000 | D145: 106591140 | E145: 7019069577 | F145: 15170069577 | H145: 15170069577 | I145: 266508000 | J145: 507203378 | K145: 0.03343447935 | L145: 922777460 | M145: 9656443 | N145: 9656443 | O145: 0.0006365457291 | P145: 0.01046454147
A146: 334011506380177007341 | B146: ADECUACIÓN HIDRÁULICA Y RECUPERACIÓN AMBIENTAL DE HUMEDALES, | C146: 8151000000 | D146: 106591140 | E146: 7019069577 | F146: 15170069577 | H146: 15170069577 | I146: 266508000 | J146: 507203378 | K146: 0.03343447935 | L146: 922777460 | M146: 9656443 | N146: 9656443 | O146: 0.0006365457291 | P146: 0.01046454147
A147: 334011506390000 | B147: AMBIENTE SANO PARA LA EQUIDAD Y DISFRUTE DEL CIUDADANO | C147: 86231111000 | D147: 64699291 | E147: -7387259788 | F147: 78843851212 | H147: 78843851212 | I147: 64699291 | J147: 36806221212 | K147: 0.4668242437 | L147: 863725234 | M147: 41307095 | N147: 41307095 | O147: 0.0005239101638 | P147: 0.04782434665
A148: 334011506390179 | B148: AMBIENTE SANO | C148: 86231111000 | D148: 64699291 | E148: -7387259788 | F148: 78843851212 | H148: 78843851212 | I148: 64699291 | J148: 36806221212 | K148: 0.4668242437 | L148: 863725234 | M148: 41307095 | N148: 41307095 | O148: 0.0005239101638 | P148: 0.04782434665
A149: 334011506390179000082 | B149: 0082 - PLAN DE SANEAMIENTO Y MANEJO DE VERTIMIENTOS | C149: 86231111000 | D149: 64699291 | E149: -7387259788 | F149: 78843851212 | H149: 78843851212 | I149: 64699291 | J149: 36806221212 | K149: 0.4668242437 | L149: 863725234 | M149: 41307095 | N149: 41307095 | O149: 0.0005239101638 | P149: 0.04782434665
A150: 334011506390179000082 | B150: PLAN DE SANEAMIENTO Y MANEJO DE VERTIMIENTOS | C150: 86231111000 | D150: 64699291 | E150: -7387259788 | F150: 78843851212 | H150: 78843851212 | I150: 64699291 | J150: 36806221212 | K150: 0.4668242437 | L150: 863725234 | M150: 41307095 | N150: 41307095 | O150: 0.0005239101638 | P150: 0.04782434665
A151: 334011507000000 | B151: EJE TRANSVERSAL GOBIERNO LEGITIMO, FORT. LOCAL Y EFICIENTE | C151: 98775295000 | D151: 175306322 | E151: -2891549018 | F151: 95883745982 | H151: 95883745982 | I151: 1339913998 | J151: 2316713998 | K151: 0.0241616968 | L151: 179988862
A152: 334011507420000 | B152: TRANSPARENCIA, GESTION PUBLICA Y SERVICIO A LA CIUDADANIA | C152: 98775295000 | D152: 175306322 | E152: -2891549018 | F152: 95883745982 | H152: 95883745982 | I152: 1339913998 | J152: 2316713998 | K152: 0.0241616968 | L152: 179988862
A153: 334011507420185 | B153: FORTALECIMIENTO A LA GESTION PUBLICA EFECTIVA Y EFICIENTE | C153: 98775295000 | D153: 175306322 | E153: -2891549018 | F153: 95883745982 | H153: 95883745982 | I153: 1339913998 | J153: 2316713998 | K153: 0.0241616968 | L153: 179988862
A154: 334011507420185000055 | B154: 0055 - FORTALECIMIENTO ADMINISTRATIVO Y OPERATIVO EMPRESARIA | C154: 98775295000 | D154: 175306322 | E154: -2891549018 | F154: 95883745982 | H154: 95883745982 | I154: 1339913998 | J154: 2316713998 | K154: 0.0241616968 | L154: 179988862
A155: 334011507420185000055 | B155: FORTALECIMIENTO ADMINISTRATIVO Y OPERATIVO EMPRESARIAL | C155: 98775295000 | D155: 175306322 | E155: -2891549018 | F155: 95883745982 | H155: 95883745982 | I155: 1339913998 | J155: 2316713998 | K155: 0.0241616968 | L155: 179988862
A156: 334020000000000 | B156: TRANSFERENCIAS PARA INVERSION | C156: 872741045000 | D156: -7588190936 | E156: -14461885224 | F156: 858279159776 | H156: 858279159776 | J156: 5000000000 | K156: 0.005825610401 | L156: 5000000000 | N156: 5000000000 | O156: 0.005825610401 | P156: 1
A157: 334020200000000 | B157: EMPRESAS DISTRITALES | C157: 872741045000 | D157: -7588190936 | E157: -14461885224 | F157: 858279159776 | H157: 858279159776 | J157: 5000000000 | K157: 0.005825610401 | L157: 5000000000 | N157: 5000000000 | O157: 0.005825610401 | P157: 1
A158: 334030000000000 | B158: CUENTAS POR PAGAR | C158: 761645032000 | D158: -35777210456 | E158: 10032867773 | F158: 771677899773 | H158: 771677899773 | I158: -36393533161 | J158: 759710590489 | K158: 0.9844918336 | L158: 150497890067 | M158: 57328241256 | N158: 83114081551 | O158: 0.1077056652 | P158: 0.552260776
A159: 334030000000000 | B159: CUENTAS POR PAGAR | C159: 761645032000 | D159: -35777210456 | E159: 10032867773 | F159: 771677899773 | H159: 771677899773 | I159: -36393533161 | J159: 759710590489 | K159: 0.9844918336 | L159: 150497890067 | M159: 57328241256 | N159: 83114081551 | O159: 0.1077056652 | P159: 0.552260776
A160: 340000000000000 | B160: DISPONIBILIDAD FINAL | C160: 238551564000 | F160: 238551564000 | H160: 238551564000
A161: 340000000000000 | B161: DISPONIBILIDAD FINAL | C161: 238551564000 | F161: 238551564000 | H161: 238551564000
